2CCN - Level 2 Cost Centre Name,,9CCN - Level 9 Cost Centre Name,9CCC - Level 9 Cost Centre Code,9AN - Level 9 Account Name,9AC - Level 9 Account Code,Transaction Description,Date Paid,Transaction Reference,Analysed Amount,2AC - Level 2 Account Codes,Supplier Name,Supplier Code
Gloucester City Council,23UE,Allotments,HI104,Fees For Services Received,5350,Saintbridge allotments skip hire,01/06/2016,418337,230.00,NET,Allstone Sand & Gravel Aggregates Ltd,00940M
Gloucester City Council,23UE,Allotments,HI104,Fees For Services Received,5350,skip hire 13/4/16,01/06/2016,418338,230.00,NET,Allstone Sand & Gravel Aggregates Ltd,00940M
Gloucester City Council,23UE,Business Transformation & Tech,RT700,Security Testing - Govt Connec,5446,Scoping Study,01/06/2016,419121,"2,250.00",NET,Ncc Group Security Services Ltd,15823M
Gloucester City Council,23UE,City Museum And Art Gallery,LM200,Advertising And Publicity,5702,Events Guide,01/06/2016,419063,260.00,NET,Third Floor Design Ltd,16420U
Gloucester City Council,23UE,City Museum And Art Gallery,LM200,Subscriptions,5600,Annual Subscription,01/06/2016,419120,15.00,NET,Gloucestershire Archaeology,03895L
Gloucester City Council,23UE,City Museum Catering,LM202,Catering Provisions -Food,5110,Food,01/06/2016,419123,4.76,NET,Total Produce Gloucester,12645E
Gloucester City Council,23UE,City Museum Catering,LM202,Catering Provisions -Food,5110,Food,01/06/2016,419124,7.14,NET,Total Produce Gloucester,12645E
Gloucester City Council,23UE,City Museum Catering,LM202,Catering Provisions -Food,5110,Food,01/06/2016,419125,2.38,NET,Total Produce Gloucester,12645E
Gloucester City Council,23UE,Countryside Unit,LP201,Contract Cleaning,3620,Cleaning Rangers Office,01/06/2016,419206,130.00,NET,Cv Fisher Cleaning Services,14907C
Gloucester City Council,23UE,Development Management,PT200,Fees For Services Received,5350,PEEL CENTRE RETAIL PLANNING,01/06/2016,419088,"4,500.00",NET,Carter Jonas Llp,16157K
Gloucester City Council,23UE,REDACTED,REDACTED,REDACTED,REDACTED,REDACTED,01/06/2016,REDACTED,121.20,NET,REDACTED,REDACTED
Gloucester City Council,23UE,Economic Development,FP300,Basic Pay -Admin /Prof Staff,2601,Reimbursement Costs,01/06/2016,418932,"5,644.77",NET,Gloucestershire County Council,18650D
Gloucester City Council,23UE,Gloucester Guildhall,LA100,Subscriptions,5600,Membership,01/06/2016,419130,365.00,NET,Gloucester City Safe,14709J
Gloucester City Council,23UE,Guildhall Events,LA200,Artists Fees,5355,Performance Fee 06/05/16,01/06/2016,419276,847.20,NET,West And Murphy Ltd,16423M
Gloucester City Council,23UE,REDACTED,REDACTED,REDACTED,REDACTED,REDACTED,01/06/2016,REDACTED,"1,500.00",NET,REDACTED,REDACTED
Gloucester City Council,23UE,Hackney Carriages,HL100,Other Minor Supplies Services,5590,Ribbons,01/06/2016,419126,374.50,NET,Essentra Packaging & Security Ltd,03936T
Gloucester City Council,23UE,Robinswood All Paths Project,LY162,Contract Payments,0020,Car Park Improvements,01/06/2016,419131,"9,614.50",CAP,Gloucestershire Wildlife Trust,15576A
Gloucester City Council,23UE,The Arbor,HC501,Catering Provisions -Food,5110,food,01/06/2016,419047,135.87,NET,Janes Pantry,24500W
Gloucester City Council,23UE,The Arbor,HC501,Catering Provisions -Food,5110,Food,01/06/2016,419207,492.09,NET,Bidvest Foodservice (3663),55585U
Gloucester City Council,23UE,The Arbor,HC501,Catering Provisions -Food,5110,Food,01/06/2016,419208,107.46,NET,Bidvest Foodservice (3663),55585U
Gloucester City Council,23UE,The Arbor,HC501,Catering Provisions -Food,5110,Food,01/06/2016,419209,63.72,NET,Total Produce Gloucester,12645E
Gloucester City Council,23UE,The Arbor,HC501,Catering Provisions -Food,5110,Food,01/06/2016,419210,26.86,NET,Total Produce Gloucester,12645E
Gloucester City Council,23UE,The Arbor,HC501,Catering Provisions -Food,5110,Food,01/06/2016,419211,17.95,NET,Total Produce Gloucester,12645E
Gloucester City Council,23UE,The Arbor,HC501,Catering Provisions -Food,5110,Food,01/06/2016,419213,15.44,NET,Total Produce Gloucester,12645E
Gloucester City Council,23UE,The Arbor,HC501,Catering Provisions -Food,5110,Food,01/06/2016,419214,12.82,NET,Total Produce Gloucester,12645E
Gloucester City Council,23UE,The Arbor,HC501,Catering Provisions -Food,5110,Food,01/06/2016,419215,12.00,NET,Total Produce Gloucester,12645E
Gloucester City Council,23UE,The Arbor,HC501,Catering Provisions -Food,5110,Food,01/06/2016,419216,42.67,NET,Total Produce Gloucester,12645E
Gloucester City Council,23UE,The Arbor,HC501,Catering Provisions -Food,5110,Food,01/06/2016,419217,7.75,NET,Total Produce Gloucester,12645E
Gloucester City Council,23UE,The Arbor,HC501,Catering Provisions -Food,5110,Food,01/06/2016,419218,16.33,NET,Total Produce Gloucester,12645E
Gloucester City Council,23UE,The Arbor,HC501,Catering Provisions -Food,5110,Food,01/06/2016,419219,18.35,NET,Total Produce Gloucester,12645E
Gloucester City Council,23UE,The Arbor,HC501,Catering Provisions -Food,5110,Food,01/06/2016,419220,2.49,NET,Total Produce Gloucester,12645E
Gloucester City Council,23UE,The Arbor,HC501,Catering Provisions -Food,5110,Food,01/06/2016,419221,13.91,NET,Total Produce Gloucester,12645E
Gloucester City Council,23UE,The Arbor,HC501,Catering Provisions -Food,5110,FOOD,01/06/2016,418828,87.60,NET,Janes Pantry,24500W
Gloucester City Council,23UE,The Arbor,HC501,Operational Equipment <5000,5012,catering equipment,01/06/2016,418257,131.99,NET,Nisbets,55372P
Gloucester City Council,23UE,The Arbor,HC501,Operational Equipment <5000,5012,COFFEE,01/06/2016,417982,73.82,NET,Ethical Addictions Ltd,11654N
Gloucester City Council,23UE,The Arbor,HC501,Other Minor Supplies Services,5590,Flowers May 16,01/06/2016,419204,32.00,NET,Carols Florist,01274X
Gloucester City Council,23UE,The Arbor,HC501,Other Minor Supplies Services,5590,Flowers May 16,01/06/2016,419205,32.00,NET,Carols Florist,01274X
Gloucester City Council,23UE,The Fleece,RB530,General Repair/Maint Buildings,3000,Edge Protection Scaffolding,01/06/2016,419225,895.00,NET,King Scaffolding Ltd,16240Y
Gloucester City Council,23UE,Vehicles,RS140,Fuel,4012,Fuel,01/06/2016,419164,181.10,NET,Allstar Business Solutions Ltd (Arval),06594A
Gloucester City Council,23UE,Cemeteries,HC300,Basic Pay - Temporary Staff,2751,Temporary staff w/e 15/05/2016,02/06/2016,419091,439.88,NET,Premiere Employment Group Ltd,55468Z
Gloucester City Council,23UE,Civica Admin Charges,RT105,Postages,5400,Post 03/05 - 13/05 2016,02/06/2016,419165,"1,218.11",NET,Royal Mail S.Wales & South West,35830S
Gloucester City Council,23UE,Client Revs & Bens Contract,RT240,Bailiffs Fees,5368,VAT due on statutory fees,02/06/2016,419127,0.00,NET,Bristow & Sutor,05450M
Gloucester City Council,23UE,Client Revs & Bens Contract,RT240,Bailiffs Fees,5368,VAT due on statutory fees,02/06/2016,419128,0.00,NET,Bristow & Sutor,05450M
Gloucester City Council,23UE,Contact Centre,RB300,Printing,5300,Stationery,02/06/2016,419153,36.32,NET,Lyreco Uk Ltd,11746G
Gloucester City Council,23UE,Contact Centre,RB300,Stationery,5302,Stationery,02/06/2016,419154,2.27,NET,Lyreco Uk Ltd,11746G
Gloucester City Council,23UE,Contact Centre,RB300,Stationery,5302,Stationery,02/06/2016,419152,130.64,NET,Lyreco Uk Ltd,11746G
Gloucester City Council,23UE,Contact Centre,RB300,Stationery,5302,Stationery,02/06/2016,419155,75.33,NET,Lyreco Uk Ltd,11746G
Gloucester City Council,23UE,Contact Centre,RB300,Stationery,5302,Stationery,02/06/2016,419156,7.18,NET,Lyreco Uk Ltd,11746G
Gloucester City Council,23UE,Contact Centre,RB300,Stationery,5302,Stationery,02/06/2016,419157,43.84,NET,Lyreco Uk Ltd,11746G
Gloucester City Council,23UE,Contact Centre,RB300,Stationery,5302,Stationery,02/06/2016,419158,54.00,NET,Lyreco Uk Ltd,11746G
Gloucester City Council,23UE,Council Streetcare Team,HI101,Maint Of Grounds - General,3030,Various Items,02/06/2016,419161,68.20,NET,Severn Signs Ltd,49841D
Gloucester City Council,23UE,Crematorium,HC200,Printing,5300,Paper,02/06/2016,419159,101.45,NET,Office Star Group Ltd,55874H
Gloucester City Council,23UE,Financial Services,RT200,Fees For Services Received,5350,stationery - credited as defective,02/06/2016,419299,38.39,NET,Lyreco Uk Ltd,11746G
Gloucester City Council,23UE,Guildhall Bar And Caf�,LA210,Catering Provisions -Food,5110,food,02/06/2016,418829,28.20,NET,Janes Pantry,24500W
Gloucester City Council,23UE,Guildhall Bar And Caf�,LA210,Catering Provisions -Food,5110,Milk,02/06/2016,418732,4.76,NET,Total Produce Gloucester,12645E
Gloucester City Council,23UE,Guildhall Bar And Caf�,LA210,Catering Provisions -Food,5110,Milk,02/06/2016,418733,4.76,NET,Total Produce Gloucester,12645E
Gloucester City Council,23UE,Guildhall Bar And Caf�,LA210,Catering Provisions -Food,5110,Milk,02/06/2016,418734,4.76,NET,Total Produce Gloucester,12645E
Gloucester City Council,23UE,Guildhall Bar And Caf�,LA210,Catering Provisions -Food,5110,Milk,02/06/2016,418735,4.76,NET,Total Produce Gloucester,12645E
Gloucester City Council,23UE,REDACTED,REDACTED,REDACTED,REDACTED,REDACTED,02/06/2016,REDACTED,100.00,NET,REDACTED,REDACTED
Gloucester City Council,23UE,REDACTED,REDACTED,REDACTED,REDACTED,REDACTED,02/06/2016,REDACTED,120.00,NET,REDACTED,REDACTED
Gloucester City Council,23UE,REDACTED,REDACTED,REDACTED,REDACTED,REDACTED,02/06/2016,REDACTED,111.49,NET,REDACTED,REDACTED
Gloucester City Council,23UE,REDACTED,REDACTED,REDACTED,REDACTED,REDACTED,02/06/2016,REDACTED,109.67,NET,REDACTED,REDACTED
Gloucester City Council,23UE,REDACTED,REDACTED,REDACTED,REDACTED,REDACTED,02/06/2016,REDACTED,208.34,NET,REDACTED,REDACTED
Gloucester City Council,23UE,REDACTED,REDACTED,REDACTED,REDACTED,REDACTED,02/06/2016,REDACTED,96.54,NET,REDACTED,REDACTED
Gloucester City Council,23UE,REDACTED,REDACTED,REDACTED,REDACTED,REDACTED,02/06/2016,REDACTED,100.00,NET,REDACTED,REDACTED
Gloucester City Council,23UE,REDACTED,REDACTED,REDACTED,REDACTED,REDACTED,02/06/2016,REDACTED,100.00,NET,REDACTED,REDACTED
Gloucester City Council,23UE,REDACTED,REDACTED,REDACTED,REDACTED,REDACTED,02/06/2016,REDACTED,"1,000.00",NET,REDACTED,REDACTED
Gloucester City Council,23UE,REDACTED,REDACTED,REDACTED,REDACTED,REDACTED,02/06/2016,REDACTED,250.00,NET,REDACTED,REDACTED
Gloucester City Council,23UE,REDACTED,REDACTED,REDACTED,REDACTED,REDACTED,02/06/2016,REDACTED,72.00,NET,REDACTED,REDACTED
Gloucester City Council,23UE,Homelessness,CH120,Board And Lodging,5515,various tenants,02/06/2016,419409,"2,362.88",NET,Carbrey Housing Ltd,11098G
Gloucester City Council,23UE,Homelessness,CH120,Board And Lodging,5515,various tenants,02/06/2016,419411,"6,679.96",NET,REDACTED,REDACTED
Gloucester City Council,23UE,Homelessness,CH120,Board And Lodging,5515,various tenants,02/06/2016,419412,"2,650.66",NET,Dorchester Guest House,12298D
Gloucester City Council,23UE,Homelessness,CH120,Board And Lodging,5515,various tenants,02/06/2016,419414,"1,348.56",NET,Kalmwood Ltd,08568G
Gloucester City Council,23UE,Homelessness,CH120,Board And Lodging,5515,various tenants,02/06/2016,419416,"1,856.06",NET,James Legge Property (Ltd),07844R
Gloucester City Council,23UE,REDACTED,REDACTED,REDACTED,REDACTED,REDACTED,02/06/2016,REDACTED,"1,985.10",NET,REDACTED,REDACTED
Gloucester City Council,23UE,REDACTED,REDACTED,REDACTED,REDACTED,REDACTED,02/06/2016,REDACTED,"8,321.49",NET,REDACTED,REDACTED
Gloucester City Council,23UE,REDACTED,REDACTED,REDACTED,REDACTED,REDACTED,02/06/2016,REDACTED,393.20,NET,REDACTED,REDACTED
Gloucester City Council,23UE,Housing Works In Default,HD500,Clearance And Cleansing Fees,5384,Hatherley Road- blocked drains,02/06/2016,419142,290.00,NET,Three Counties Drain Service,44033V
Gloucester City Council,23UE,Housing Works In Default,HD500,Clearance And Cleansing Fees,5384,Blocked Drains,02/06/2016,419143,110.00,NET,Three Counties Drain Service,44033V
Gloucester City Council,23UE,Housing Works In Default,HD500,Clearance And Cleansing Fees,5384,Toilet & Sink Blockages,02/06/2016,419144,230.00,NET,Three Counties Drain Service,44033V
Gloucester City Council,23UE,Lighting,GY009,Contract Payments,0020,Re-lighting report,02/06/2016,419097,"1,291.60",CAP,Scs Installations Ltd,10383G
Gloucester City Council,23UE,Pollution Control,HE300,Fees For Services Received,5350,Hyundai colleciton & disposal,02/06/2016,419040,150.00,NET,Harry Buckland,16135W
Gloucester City Council,23UE,Statutory Testing,RS310,Fees For Services Received,5350,Asbestos Survey,02/06/2016,419227,490.00,NET,Gloucester Asbestos Ltd,00496K
Gloucester City Council,23UE,Statutory Testing,RS310,Fees For Services Received,5350,Servicing 8 Denco Units,02/06/2016,418746,714.35,NET,Axiom Building Services,14908A
Gloucester City Council,23UE,Tic Trading,LT110,Materials For Sale,5080,Keys,02/06/2016,419162,88.66,NET,N & C Building Products Ltd,02054E
Gloucester City Council,23UE,Townscape Heritage Initiative,LY145,Contract Payments,0020,supply extra copings,02/06/2016,419365,954.00,CAP,Bourne Masonry,15013X
Gloucester City Council,23UE,Utilities,PT502,Electricity Supply,3110,Final Bill Grosvenor House,02/06/2016,419223,2.12,NET,Opus Energy (Corporate),12788B
Gloucester City Council,23UE,Utilities,PT502,Electricity Supply,3110,Utilities Charges April 2016,02/06/2016,419203,275.03,NET,West Mercia Energy,11669Z
Gloucester City Council,23UE,Utilities,PT502,Gas Supply,3100,Utilities Charges April 2016,02/06/2016,419203,"13,690.71",NET,West Mercia Energy,11669Z
Gloucester City Council,23UE,Allotments,HI104,Fees For Services Received,5350,skip hire Saintbridge allotments,03/06/2016,418339,215.00,NET,Allstone Sand & Gravel Aggregates Ltd,00940M
Gloucester City Council,23UE,REDACTED,REDACTED,REDACTED,REDACTED,REDACTED,03/06/2016,419452,7.50,NET,REDACTED,REDACTED
Gloucester City Council,23UE,Business Transformation & Tech,RT700,Computer Software Maintenance,5427,V9 upgrade APR16-MAR17 maintenance,03/06/2016,416743,780.00,NET,Capita Business Services Limited,54095C
Gloucester City Council,23UE,Corporate Expenses,RC110,Subscriptions,5600,LGIU AFILIATE FEE FOR 2016,03/06/2016,419453,"2,995.00",NET,Local Government Information Unit,51597A
Gloucester City Council,23UE,Countryside Unit,LP201,Maint Of Grounds - General,3030,spares,03/06/2016,419391,77.90,NET,Buxtons Ltd,05590U
Gloucester City Council,23UE,Development Management,PT200,Advertising And Publicity,5702,adverts,03/06/2016,419312,262.94,NET,Local World Ltd,08556P
Gloucester City Council,23UE,REDACTED,REDACTED,REDACTED,REDACTED,REDACTED,03/06/2016,REDACTED,77.58,NET,REDACTED,REDACTED
Gloucester City Council,23UE,REDACTED,REDACTED,REDACTED,REDACTED,REDACTED,03/06/2016,REDACTED,360.00,NET,REDACTED,REDACTED
Gloucester City Council,23UE,REDACTED,REDACTED,REDACTED,REDACTED,REDACTED,03/06/2016,REDACTED,435.00,NET,REDACTED,REDACTED
Gloucester City Council,23UE,Asset Management,RS300,Basic Pay - Temporary Staff,2751,APRIL 2016 PROJECT ENGINEERING SERVICES,06/06/2016,419367,"5,976.25",NET,Ecostep Ltd,15511Z
Gloucester City Council,23UE,Cemeteries,HC300,Purch Vehicles/M. Plant <5000,4000,2x danarm,06/06/2016,419319,616.00,NET,Garden Machinery Gloucester,55641K
Gloucester City Council,23UE,Cemeteries,HC300,Tyres,4014,TYRE REPAIR,06/06/2016,419354,61.30,NET,Ats Euromaster Ltd,06005E
Gloucester City Council,23UE,City Museum And Art Gallery,LM200,Care Of Collections,5039,SW museums devt programme 16-17,06/06/2016,419401,"1,500.00",NET,Bristol City Council,16392X
Gloucester City Council,23UE,City Museum Catering,LM202,Catering Provisions -Food,5110,milk,06/06/2016,419355,4.76,NET,Total Produce Gloucester,12645E
Gloucester City Council,23UE,City Museum Catering,LM202,Catering Provisions -Food,5110,milk,06/06/2016,419356,4.76,NET,Total Produce Gloucester,12645E
Gloucester City Council,23UE,City Museum Catering,LM202,Catering Provisions -Food,5110,milk,06/06/2016,419357,2.38,NET,Total Produce Gloucester,12645E
Gloucester City Council,23UE,City Museum Catering,LM202,Catering Provisions -Food,5110,milk,06/06/2016,419358,4.76,NET,Total Produce Gloucester,12645E
Gloucester City Council,23UE,Client Revs & Bens Contract,RT240,Bailiffs Fees,5368,VAT ONLY INVOICE,06/06/2016,419340,0.00,NET,Bristow & Sutor,05450M
Gloucester City Council,23UE,Client Revs & Bens Contract,RT240,Bailiffs Fees,5368,VAT ONLY INVOICE,06/06/2016,419348,0.00,NET,Bristow & Sutor,05450M
Gloucester City Council,23UE,Client Revs & Bens Contract,RT240,Fees For Services Received,5350,arrest warrants,06/06/2016,419383,60.00,NET,Assevarate Ltd,11749A
Gloucester City Council,23UE,Coll Fund Revenue Account,ZC100,County Council Precept,7460,precept payment,06/06/2016,419476,"4,168,751.70",NET,Gloucestershire County Council,18650D
Gloucester City Council,23UE,Coll Fund Revenue Account,ZC100,Nndr Central Share,7474,brr pooling payment,06/06/2016,419475,"478,105.00",NET,Gloucestershire County Council,18650D
Gloucester City Council,23UE,Coll Fund Revenue Account,ZC100,Nndr Tariff,7473,brr pooling payment,06/06/2016,419474,"1,497,723.00",NET,Stroud District Council,74737T
Gloucester City Council,23UE,Coll Fund Revenue Account,ZC100,Police Precept,7461,precept payment,06/06/2016,419477,"773,478.20",NET,"Police & Crime Commissioner, Gloucestershire",49521B
Gloucester City Council,23UE,Contact Centre,RB300,Operational Equipment <5000,5012,stationery,06/06/2016,419394,340.05,NET,Lyreco Uk Ltd,11746G
Gloucester City Council,23UE,Contact Centre,RB300,Other Minor Supplies Services,5590,OUT OF HOURS SERVICE,06/06/2016,419361,335.54,NET,Worcestershire Telecare,16419C
Gloucester City Council,23UE,Contact Centre,RB300,Stationery,5302,paper,06/06/2016,419339,451.00,NET,Premier Paper Group Ltd,09166Y
Gloucester City Council,23UE,Contact Centre,RB300,Stationery,5302,stationery,06/06/2016,419392,31.37,NET,Lyreco Uk Ltd,11746G
Gloucester City Council,23UE,Contact Centre,RB300,Stationery,5302,stationery,06/06/2016,419393,72.79,NET,Lyreco Uk Ltd,11746G
Gloucester City Council,23UE,Contact Centre,RB300,Stationery,5302,stationery,06/06/2016,419395,60.41,NET,Lyreco Uk Ltd,11746G
Gloucester City Council,23UE,Council Streetcare Team,HI101,Fees For Services Received,5350,Green Flag,06/06/2016,419135,312.00,NET,Keep Britain Tidy,10053H
Gloucester City Council,23UE,Council Streetcare Team,HI101,Fees For Services Received,5350,Green Flag- Award Fee,06/06/2016,419137,312.00,NET,Keep Britain Tidy,10053H
Gloucester City Council,23UE,Countryside Unit,LP201,General Repair/Maint Buildings,3000,safety gear,06/06/2016,419382,119.42,NET,Greenham (Bristol) Ltd,59082N
Gloucester City Council,23UE,Crematorium,HC200,Fees For Services Received,5350,Crem Fees May 2016,06/06/2016,419468,"1,609.52",NET,Dr C M Stretton,00306P
Gloucester City Council,23UE,Crematorium,HC200,Fees For Services Received,5350,Crem Fees May 2016,06/06/2016,419469,"1,177.52",NET,Dr D Martin,00890P
Gloucester City Council,23UE,Crematorium,HC200,Fees For Services Received,5350,Crem Fees May 2016,06/06/2016,419470,314.16,NET,Dr R W Bell,01571P
Gloucester City Council,23UE,Crematorium,HC200,General Repair/Maint Buildings,3000,"50"" TV",06/06/2016,419341,506.67,NET,Revolution Multimedia,07880L
Gloucester City Council,23UE,Crematorium,HC200,Memorial Plaques,5053,plaques,06/06/2016,419318,924.00,NET,Arkell & Hurcombe,59812T
Gloucester City Council,23UE,Crematorium,HC200,Memorial Plaques,5053,plaques,06/06/2016,419352,328.00,NET,Arkell & Hurcombe,59812T
Gloucester City Council,23UE,Employers Pension Contribs,ZR355,Pension Contribs Incl Backf,2901,LGPS fees APR-MAY2016,06/06/2016,419406,"26,702.86",NET,Gloucestershire County Council,10614L
Gloucester City Council,23UE,Employers Pension Contribs,ZR355,Pension Contribs Incl Backf,2901,pension deficit for May 2016,06/06/2016,419473,"238,916.67",NET,Gloucestershire County Council,10614L
Gloucester City Council,23UE,Folk Museum,LM210,Care Of Collections,5039,SW museums devt programme 16-17,06/06/2016,419401,"1,500.00",NET,Bristol City Council,16392X
Gloucester City Council,23UE,Grants To Voluntary Sector,FG100,Members Allocation Fund,7100F,GRANT PAYMENT,06/06/2016,419466,500.00,NET,Sherborne Cinema,16473W
Gloucester City Council,23UE,Guildhall Bar And Caf�,LA210,Catering Provisions -Food,5110,FOOD,06/06/2016,419306,67.70,NET,Janes Pantry,24500W
Gloucester City Council,23UE,Guildhall Cinema,LA202,Hire Of Equipment,5020,RESPECTABLE screening fees,06/06/2016,419307,87.50,NET,Simon John Cuttell,16487J
Gloucester City Council,23UE,REDACTED,REDACTED,REDACTED,REDACTED,REDACTED,06/06/2016,REDACTED,128.33,NET,REDACTED,REDACTED
Gloucester City Council,23UE,Guildhall Events,LA200,Advertising And Publicity,5702,ADVERT 21/5/16,06/06/2016,419369,580.00,NET,Local World Ltd,08556P
Gloucester City Council,23UE,REDACTED,REDACTED,REDACTED,REDACTED,REDACTED,06/06/2016,REDACTED,"2,148.50",NET,REDACTED,REDACTED
Gloucester City Council,23UE,REDACTED,REDACTED,REDACTED,REDACTED,REDACTED,06/06/2016,REDACTED,"1,100.00",NET,REDACTED,REDACTED
Gloucester City Council,23UE,Guildhall Events,LA200,Fees For Services Received,5350,LIGHTING ENGINEER,06/06/2016,419370,150.00,NET,Leap Audio,15059W
Gloucester City Council,23UE,REDACTED,REDACTED,REDACTED,REDACTED,REDACTED,06/06/2016,REDACTED,130.00,NET,REDACTED,REDACTED
Gloucester City Council,23UE,REDACTED,REDACTED,REDACTED,REDACTED,REDACTED,06/06/2016,REDACTED,120.00,NET,REDACTED,REDACTED
Gloucester City Council,23UE,REDACTED,REDACTED,REDACTED,REDACTED,REDACTED,06/06/2016,REDACTED,50.00,NET,REDACTED,REDACTED
Gloucester City Council,23UE,Guildhall Lettings,LA400,Artists Fees,5355,Studio 2- Client Sessions,06/06/2016,419471,100.00,NET,Gloucestershire Music Makers,13755L
Gloucester City Council,23UE,Guildhall Lettings,LA400,Sale Of Goods And Services,9230,Studio 2- Client Sessions,06/06/2016,419471,-20.00,NET,Gloucestershire Music Makers,13755L
Gloucester City Council,23UE,Health And Safety,HD300,Hospitality,5122,ROOM HIRE AT TENNIS CENTRE 17/5/16,06/06/2016,419311,416.75,NET,Aspire Sports & Cultural Trust,08135V
Gloucester City Council,23UE,REDACTED,REDACTED,REDACTED,REDACTED,REDACTED,06/06/2016,REDACTED,400.00,NET,REDACTED,REDACTED
Gloucester City Council,23UE,Homelessness,CH120,Reimbursements,9100,Out of hours servce,06/06/2016,419327,"1,248.00",NET,West Oxfordshire District Council,16429Z
Gloucester City Council,23UE,Homelessness,CH120,Removal And Storage Fees,5513,storage fees,06/06/2016,419328,78.21,NET,Advanced Removals & Storage Ltd,57142R
Gloucester City Council,23UE,Homelessness,CH120,Removal And Storage Fees,5513,storage fees,06/06/2016,419329,78.21,NET,Advanced Removals & Storage Ltd,57142R
Gloucester City Council,23UE,Homelessness,CH120,Removal And Storage Fees,5513,storage fees,06/06/2016,419330,39.11,NET,Advanced Removals & Storage Ltd,57142R
Gloucester City Council,23UE,Homelessness,CH120,Removal And Storage Fees,5513,storage fees,06/06/2016,419331,29.57,NET,Advanced Removals & Storage Ltd,57142R
Gloucester City Council,23UE,Homelessness,CH120,Removal And Storage Fees,5513,storage fees,06/06/2016,419332,39.11,NET,Advanced Removals & Storage Ltd,57142R
Gloucester City Council,23UE,Homelessness,CH120,Removal And Storage Fees,5513,storage fees,06/06/2016,419333,78.21,NET,Advanced Removals & Storage Ltd,57142R
Gloucester City Council,23UE,Homelessness,CH120,Removal And Storage Fees,5513,storage fees,06/06/2016,419334,78.21,NET,Advanced Removals & Storage Ltd,57142R
Gloucester City Council,23UE,Homelessness,CH120,Removal And Storage Fees,5513,storage fees,06/06/2016,419335,19.29,NET,Advanced Removals & Storage Ltd,57142R
Gloucester City Council,23UE,Homelessness,CH120,Removal And Storage Fees,5513,storage fees,06/06/2016,419336,180.00,NET,Advanced Removals & Storage Ltd,57142R
Gloucester City Council,23UE,Homelessness Prevention,CH122,Fees For Services Received,5350,medical report,06/06/2016,419337,20.50,NET,Gloucester City Health Centre,02093U
Gloucester City Council,23UE,Investment Property,RB500,Water Supply,3400,AQUAFUND AGREEMENT CHARGES,06/06/2016,417633,38.98,NET,Advanced Demand Side Management Ltd,16229K
Gloucester City Council,23UE,Kings Quarter,RY146,Contract Payments,0020,foam map panel,06/06/2016,419314,343.30,CAP,Hanman Split Ltd,56889J
Gloucester City Council,23UE,Kings Quarter,RY146,Contract Payments,0020,transport hub monitoring,06/06/2016,419398,"2,282.00",CAP,Aecom Ltd,12443V
Gloucester City Council,23UE,REDACTED,REDACTED,REDACTED,REDACTED,REDACTED,06/06/2016,REDACTED,44.00,NET,REDACTED,REDACTED
Gloucester City Council,23UE,Off Street Car Parks,PP110,Water Supply,3400,AQUAFUND AGREEMENT CHARGES,06/06/2016,417633,111.43,NET,Advanced Demand Side Management Ltd,16229K
Gloucester City Council,23UE,Planning Policy & Heritage,PT300,Exhibits And Collections,5038,archaeology info board,06/06/2016,419360,75.00,NET,Alpha Colour Printers Ltd,00945B
Gloucester City Council,23UE,Pollution Control,HE300,Fees For Services Received,5350,Collection & Disposal Fee,06/06/2016,419140,80.00,NET,Harry Buckland,16135W
Gloucester City Council,23UE,Pollution Control,HE300,Fees For Services Received,5350,Collection & Storage Fees,06/06/2016,419139,90.00,NET,Harry Buckland,16135W
Gloucester City Council,23UE,Public Conveniences (Client),HI400,Water Supply,3400,AQUAFUND AGREEMENT CHARGES,06/06/2016,417633,86.00,NET,Advanced Demand Side Management Ltd,16229K
Gloucester City Council,23UE,Rehousing,CH111,Fees For Services Received,5350,medical report,06/06/2016,419342,20.50,NET,Dr R Watkins & Partners,59237H
Gloucester City Council,23UE,Rehousing,CH111,Fees For Services Received,5350,medical reports,06/06/2016,419353,50.00,NET,Quedgeley Medical Centre,04984B
Gloucester City Council,23UE,Retail Market - Landlord,HM300,Radio Equipment,5416,MARKET PRS LICENCE FEES 2015/16,06/06/2016,419366,374.50,NET,Prs For Music,05077M
Gloucester City Council,23UE,Safer Stronger Communities,FP841,Other Minor Supplies Services,5590,Paws On Patrol T Shirt,06/06/2016,419316,5.83,NET,Leisure Lines,13017E
Gloucester City Council,23UE,The Arbor,HC501,Catering Provisions -Food,5110,food,06/06/2016,419404,137.91,NET,Total Produce Gloucester,12645E
Gloucester City Council,23UE,Tourism Marketing,LT100,Window Cleaning,3610,Apr16 window cleaning,06/06/2016,419320,12.00,NET,Interserve Fs (Uk) Limited,00442K
Gloucester City Council,23UE,Tourism Marketing,LT100,Window Cleaning,3610,March & April16 window cleaning,06/06/2016,419321,24.00,NET,Interserve Fs (Uk) Limited,00442K
Gloucester City Council,23UE,Tourism Marketing,LT100,Window Cleaning,3610,window cleaning Apr16,06/06/2016,419323,42.93,NET,Interserve Fs (Uk) Limited,00442K
Gloucester City Council,23UE,City Museum And Art Gallery,LM200,Publications For Sale,5064,Finger Puppets,07/06/2016,419167,276.07,NET,The Puppet Company,14242N
Gloucester City Council,23UE,City Museum And Art Gallery,LM200,Publications For Sale,5064,goods for resale,07/06/2016,419079,343.32,NET,British Fossils,53280R
Gloucester City Council,23UE,City Museum And Art Gallery,LM200,Uniforms,5201,MUSEUMS UNIFORMS,07/06/2016,419375,500.00,NET,Quality Embroidery & Printing,06518T
Gloucester City Council,23UE,Corporate Reporting /Financing,RC504,Reimbursements,9100,Manual Invoice to cancel credit note out,07/06/2016,419559,"1,550.00",NET,Kpmg,06498X
Gloucester City Council,23UE,Council Streetcare Team,HI101,Fees For Services Received,5350,Green Flag - Award Fee,07/06/2016,419136,363.00,NET,Keep Britain Tidy,10053H
Gloucester City Council,23UE,Economic Development,FP300,Business Grant,7116,Broadband voucher GBCV0022 ref 2049760,07/06/2016,419560,"3,000.00",NET,Kcom,15848H
Gloucester City Council,23UE,Folk Museum,LM210,Publications For Sale,5064,Bracelets,07/06/2016,419169,400.00,NET,British Fossils,53280R
Gloucester City Council,23UE,Folk Museum,LM210,Uniforms,5201,MUSEUMS UNIFORMS,07/06/2016,419375,320.00,NET,Quality Embroidery & Printing,06518T
Gloucester City Council,23UE,Folk Museum,LM210,Uniforms,5201,MUSEUMS UNIFORMS,07/06/2016,419376,30.00,NET,Quality Embroidery & Printing,06518T
Gloucester City Council,23UE,Grants To Voluntary Sector,FG100,Members Allocation Fund,7100F,Grant,07/06/2016,419479,450.00,NET,Parish Of St.Mary De Lode & St.Mary De Crypt,16483T
Gloucester City Council,23UE,Guildhall Events,LA200,Fees For Services Received,5350,June-July Issue,07/06/2016,419368,382.50,NET,Glide Media,58829J
Gloucester City Council,23UE,REDACTED,REDACTED,REDACTED,REDACTED,REDACTED,07/06/2016,REDACTED,21.00,NET,REDACTED,REDACTED
Gloucester City Council,23UE,Rehousing,CH111,Fees For Services Received,5350,medical reports,07/06/2016,419338,275.00,NET,Now Medical,03468L
Gloucester City Council,23UE,REDACTED,REDACTED,REDACTED,REDACTED,REDACTED,07/06/2016,REDACTED,260.00,NET,REDACTED,REDACTED
Gloucester City Council,23UE,Barbican Car Park,RB543,General Repair/Maint Buildings,3000,EXCAVATOR HIRE,08/06/2016,419084,432.00,NET,Ken Pink Plant Hire Ltd,56884V
Gloucester City Council,23UE,Business Transformation & Tech,RT700,Computer Software Maintenance,5427,efinancials support 16-17,08/06/2016,418265,"20,460.00",NET,Advanced Business Solutions,06072N
Gloucester City Council,23UE,Cemeteries,HC300,Clothing,5200,grip gloves,08/06/2016,419351,27.50,NET,Safpro Industrial Supply Co,39190W
Gloucester City Council,23UE,Cemeteries,HC300,Operational Materials,5070,manual sprayer,08/06/2016,419315,68.50,NET,Spaldings,48759Y
Gloucester City Council,23UE,Contact Centre,RB300,Postages,5400,Post 29/04 - 19/05 2016,08/06/2016,419400,"1,496.66",NET,Royal Mail S.Wales & South West,35830S
Gloucester City Council,23UE,Crematorium,HC200,Book Of Memory,5055,Site Visit 29/04/2016,08/06/2016,419133,104.54,NET,Hilton Cabinet Co Ltd,21910A
Gloucester City Council,23UE,Crematorium,HC200,Equipment For Sale,5050,Bench,08/06/2016,419134,519.99,NET,Codec Facilities Ltd,14338Y
Gloucester City Council,23UE,Crematorium,HC200,Maint Of Grounds - General,3030,tree pruning,08/06/2016,419399,"2,560.00",NET,Jpu Services Ltd,11056K
Gloucester City Council,23UE,Financial Services,RT200,Fees For Services Received,5350,VAT only invoice,08/06/2016,419149,0.00,NET,Weightmans Llp,15485E
Gloucester City Council,23UE,Financial Services,RT200,Fees For Services Received,5350,VAT only invoice,08/06/2016,419148,0.00,NET,Weightmans Llp,15485E
Gloucester City Council,23UE,Financial Services,RT200,Fees For Services Received,5350,VAT only invoice,08/06/2016,419150,0.00,NET,Weightmans Llp,15485E
Gloucester City Council,23UE,Financial Services,RT200,Vocational Training,2970,AAT Exam fees 25/06/16,08/06/2016,419606,75.00,NET,Pitman Training Worcester,16384W
Gloucester City Council,23UE,General Drainage Works,PY241,Contract Payments,0020,Trash Screen Fee,08/06/2016,419601,210.00,CAP,Environment Agency,07937G
Gloucester City Council,23UE,REDACTED,REDACTED,REDACTED,REDACTED,REDACTED,08/06/2016,REDACTED,"1,065.52",NET,REDACTED,REDACTED
Gloucester City Council,23UE,Hackney Carriages,HL100,Fees For Services Received,5350,DVLA electronic checks,08/06/2016,418545,50.75,NET,Intelligent Data Systems (Uk) Ltd,11067G
Gloucester City Council,23UE,Kings Sq Paving Emerg Works,RY161,Contract Payments,0020,Kings Square - Repairs,08/06/2016,419068,50.00,CAP,J M Grail (General Engineering) Ltd,03204A
Gloucester City Council,23UE,Nms Contract,HI102,Contracted Services,6970,Commodity top up April 2016,08/06/2016,419344,"25,856.00",NET,Enterprise (Aol) Ltd,06695G
Gloucester City Council,23UE,Nms Contract,HI102,Contracted Services,6970,May 2016 Service Fee,08/06/2016,419343,"478,446.30",NET,Enterprise (Aol) Ltd,06695G
Gloucester City Council,23UE,Off Street Car Parks,PP110,General Repair/Maint Buildings,3000,HEIGHT BARRIER REPAIRS BRUTON WY,08/06/2016,419095,975.00,NET,J M Grail (General Engineering) Ltd,03204A
Gloucester City Council,23UE,Vehicles,RS140,Fuel,4012,Fuel,08/06/2016,419402,175.35,NET,Allstar Business Solutions Ltd (Arval),06594A
Gloucester City Council,23UE,Retail Market - Landlord,HM300,Cleaning / Domestic Equipment,5011,TOWEL RENTAL JUN16,09/06/2016,419092,20.52,NET,Initial Washroom Solutions,06143R
Gloucester City Council,23UE,Shopmobility,PE200,Maintenance Of Equipment,5030,various repairs,09/06/2016,419403,354.00,NET,Disabled Care & Mobility,12675V
Gloucester City Council,23UE,REDACTED,REDACTED,REDACTED,REDACTED,REDACTED,09/06/2016,REDACTED,943.00,CAP,REDACTED,REDACTED
Gloucester City Council,23UE,Blackfriars,LA609,Catering Provisions -Liquor,5111,drinks,10/06/2016,419745,"1,326.06",NET,Cellar Supplies Cheltenham Ltd,01563L
Gloucester City Council,23UE,Blackfriars,LA609,Contract Cleaning,3620,MAY16 cleaning,10/06/2016,419346,390.00,NET,Into Cleaning,14609P
Gloucester City Council,23UE,City Museum And Art Gallery,LM200,Printing,5300,museums event guide,10/06/2016,419378,857.00,NET,Color Co,57707K
Gloucester City Council,23UE,Client Revs & Bens Contract,RT240,Fees For Services Received,5350,Manual Postings Charge 15/16,10/06/2016,418899,33.60,NET,Gemini Consultants Ltd,52177U
Gloucester City Council,23UE,Corporate Reporting /Financing,RC504,Audit Fees,5383,Pooling of housing capital receipts,10/06/2016,418896,"3,000.00",NET,Kpmg,06498X
Gloucester City Council,23UE,Disabled Facilities Grants,CY013,Disabled Facility Grants,0074,MDF5062 FINAL FEE,10/06/2016,419819,"3,335.60",CAP,Mears Home Improvement Ltd,00096G
Gloucester City Council,23UE,Disabled Facilities Grants,CY013,Disabled Facility Grants,0074,MDF5181 FINAL FEE,10/06/2016,419820,"4,056.70",CAP,Mears Home Improvement Ltd,00096G
Gloucester City Council,23UE,Disabled Facilities Grants,CY013,Disabled Facility Grants,0074,MDF5190 FINAL FEE,10/06/2016,419818,"7,924.28",CAP,Mears Home Improvement Ltd,00096G
Gloucester City Council,23UE,REDACTED,REDACTED,REDACTED,REDACTED,REDACTED,10/06/2016,REDACTED,"3,096.00",CAP,REDACTED,REDACTED
Gloucester City Council,23UE,Docks Complex - Castlemeads Cp,RB210,Contracted Services,6970,GC fixed overhead,10/06/2016,419748,773.48,NET,Apcoa Parking (Uk) Ltd,09954M
Gloucester City Council,23UE,Docks Complex - Castlemeads Cp,RB210,Contracted Services,6970,GC vehicles,10/06/2016,419749,454.26,NET,Apcoa Parking (Uk) Ltd,09954M
Gloucester City Council,23UE,Docks Complex - Services,RB100,Trade Refuse Collection,3630,trade waste,10/06/2016,419102,"11,760.97",NET,Enterprise (Aol) Ltd,06695G
Gloucester City Council,23UE,Docks Complex - Services,RB100,Trade Refuse Collection,3630,trade waste,10/06/2016,419103,297.70,NET,Enterprise (Aol) Ltd,06695G
Gloucester City Council,23UE,Folk Museum,LM210,Printing,5300,museums event guide,10/06/2016,419378,857.00,NET,Color Co,57707K
Gloucester City Council,23UE,General Works Fund,RY203,Consultants Fees,0030,CAD services,10/06/2016,418878,608.00,CAP,Graham Parker Environmental Design Solutions,16390B
Gloucester City Council,23UE,Gloucester Guildhall,LA100,Maintenance Of Equipment,5030,MAC300 hire 23/5/16,10/06/2016,419363,300.00,NET,Uss Unique Sound Systems Ltd,59571S
Gloucester City Council,23UE,Guildhall Bar And Caf�,LA210,Catering Provisions -Food,5110,food,10/06/2016,419804,156.53,NET,Woodward Foodservice,10714F
Gloucester City Council,23UE,Guildhall Bar And Caf�,LA210,Catering Provisions -Food,5110,food,10/06/2016,419805,81.62,NET,Woodward Foodservice,10714F
Gloucester City Council,23UE,Guildhall Bar And Caf�,LA210,Catering Provisions -Food,5110,milk,10/06/2016,419793,4.76,NET,Total Produce Gloucester,12645E
Gloucester City Council,23UE,Guildhall Bar And Caf�,LA210,Catering Provisions -Food,5110,milk,10/06/2016,419794,4.76,NET,Total Produce Gloucester,12645E
Gloucester City Council,23UE,Guildhall Bar And Caf�,LA210,Catering Provisions -Food,5110,milk,10/06/2016,419795,4.76,NET,Total Produce Gloucester,12645E
Gloucester City Council,23UE,Guildhall Bar And Caf�,LA210,Catering Provisions -Food,5110,milk,10/06/2016,419796,4.76,NET,Total Produce Gloucester,12645E
Gloucester City Council,23UE,Guildhall Bar And Caf�,LA210,Catering Provisions -Food,5110,milk,10/06/2016,419797,4.76,NET,Total Produce Gloucester,12645E
Gloucester City Council,23UE,Guildhall Bar And Caf�,LA210,Catering Provisions -Food,5110,milk,10/06/2016,419798,4.76,NET,Total Produce Gloucester,12645E
Gloucester City Council,23UE,Guildhall Bar And Caf�,LA210,Catering Provisions -Liquor,5111,ale for resale,10/06/2016,419744,114.00,NET,Gloucester Brewery,13373F
Gloucester City Council,23UE,Guildhall Events,LA200,Maintenance Of Equipment,5030,lighting hire 23/5/16,10/06/2016,419364,682.60,NET,Uss Unique Sound Systems Ltd,59571S
Gloucester City Council,23UE,REDACTED,REDACTED,REDACTED,REDACTED,REDACTED,10/06/2016,REDACTED,530.69,NET,REDACTED,REDACTED
Gloucester City Council,23UE,Licences,HE510,Reimbursements,5591,REFUND HC TEMPORARY TRANSFER OVERPAYMENT,10/06/2016,419816,122.00,NET,Chief Vehicle Rentals,14169X
Gloucester City Council,23UE,REDACTED,REDACTED,REDACTED,REDACTED,REDACTED,10/06/2016,REDACTED,110.00,NET,REDACTED,REDACTED
Gloucester City Council,23UE,REDACTED,REDACTED,REDACTED,REDACTED,REDACTED,10/06/2016,REDACTED,20.00,NET,REDACTED,REDACTED
Gloucester City Council,23UE,Managing Director,RE100,Fees For Services Received,5350,Assessment Centre for Corporate Director,10/06/2016,419104,"19,687.70",NET,Gloucestershire County Council,18650D
Gloucester City Council,23UE,Members Support,RC300,Other Minor Supplies Services,5590,mayor making photos,10/06/2016,419682,270.00,NET,T H Photography,55076X
Gloucester City Council,23UE,Off Street Car Parks,PP110,Contracted Services,6970,GC other items,10/06/2016,419752,"10,910.46",NET,Apcoa Parking (Uk) Ltd,09954M
Gloucester City Council,23UE,Aspire Admin Charges,LC105,Contracted Services,6970,MANAGEMENT FEES JUNE 2016,13/06/2016,419648,"38,125.58",NET,Aspire Sports & Cultural Trust,08135V
Gloucester City Council,23UE,Asset Management,RS300,Basic Pay - Temporary Staff,2751,consultancy services May 2016,13/06/2016,419637,"6,475.00",NET,Ardley Associates,09369F
Gloucester City Council,23UE,Business Transformation & Tech,RT700,Telephones And Fax,5410,Call Charges April 2016,13/06/2016,418641,"3,959.81",NET,Gamma Business Communications,10260A
Gloucester City Council,23UE,Business Transformation & Tech,RT700,Telephones And Fax,5410,Call Charges April 2016,13/06/2016,418698,"2,578.12",NET,Gamma Business Communications,10260A
Gloucester City Council,23UE,Business Transformation & Tech,RT700,Telephones And Fax,5410,Call Charges March 2016,13/06/2016,418902,"2,638.88",NET,Gamma Business Communications,10260A
Gloucester City Council,23UE,Cemeteries,HC300,Routine R And M - Vehicles,4011,strimmer repairs,13/06/2016,419635,35.49,NET,Garden Machinery Gloucester,55641K
Gloucester City Council,23UE,Cemeteries,HC300,Routine R And M - Vehicles,4011,strimmer repairs,13/06/2016,419636,35.49,NET,Garden Machinery Gloucester,55641K
Gloucester City Council,23UE,City Museum And Art Gallery,LM200,Printing,5300,BUTTON BADGES,13/06/2016,419735,690.00,NET,Emblem Print Products Limited,54871Z
Gloucester City Council,23UE,Client Revs & Bens Contract,RT240,Fees For Services Received,5350,ARREST WARRANTS,13/06/2016,419774,60.00,NET,Assevarate Ltd,11749A
Gloucester City Council,23UE,Contact Centre,RB300,Stationery,5302,FLOOR HAZARD TAPE,13/06/2016,419732,8.30,NET,Lyreco Uk Ltd,11746G
Gloucester City Council,23UE,Contact Centre,RB300,Stationery,5302,hand sanitiser,13/06/2016,419645,15.70,NET,Lyreco Uk Ltd,11746G
Gloucester City Council,23UE,Contact Centre,RB300,Stationery,5302,stationery,13/06/2016,419646,19.11,NET,Lyreco Uk Ltd,11746G
Gloucester City Council,23UE,Contact Centre,RB300,Stationery,5302,stationery,13/06/2016,419647,20.77,NET,Lyreco Uk Ltd,11746G
Gloucester City Council,23UE,Contact Centre,RB300,Stationery,5302,STATIONERY,13/06/2016,419733,730.24,NET,Lyreco Uk Ltd,11746G
Gloucester City Council,23UE,Countryside Unit,LP201,Major R And M - Vehicles,4010,"B service, MOT & parts",13/06/2016,419632,564.81,NET,Cotswold Motoring Services,16149J
Gloucester City Council,23UE,Countryside Unit,LP201,Routine R And M - Vehicles,4011,PARTS,13/06/2016,419753,21.50,NET,Ross Farm Machinery,02153B
Gloucester City Council,23UE,Development Management,PT200,Fees For Services Received,5350,transport report re Tredworth Rd,13/06/2016,419674,"1,600.00",NET,Cotswold Transport Planning Ltd,16479H
Gloucester City Council,23UE,Docks Complex - Castlemeads Cp,RB210,Contracted Services,6970,GC VARIABLE ENFORCEMENT,13/06/2016,419751,"1,911.70",NET,Apcoa Parking (Uk) Ltd,09954M
Gloucester City Council,23UE,Docks Complex - Catering Servs,RB110,Sale Of Council Products,9220,buffet,13/06/2016,419639,61.20,NET,Janes Pantry,24500W
Gloucester City Council,23UE,Docks Complex - Catering Servs,RB110,Sale Of Council Products,9220,buffet,13/06/2016,419641,900.00,NET,Janes Pantry,24500W
Gloucester City Council,23UE,Docks Complex - Catering Servs,RB110,Sale Of Council Products,9220,buffet,13/06/2016,419642,36.48,NET,Janes Pantry,24500W
Gloucester City Council,23UE,Docks Complex - Catering Servs,RB110,Sale Of Council Products,9220,food,13/06/2016,419640,145.15,NET,Janes Pantry,24500W
Gloucester City Council,23UE,Grants To Voluntary Sector,FG100,Members Allocation Fund,7100F,MEMBERS ALLOCATION FUND,13/06/2016,419723,"1,550.00",NET,Together In Matson,53760RV
Gloucester City Council,23UE,Grants To Voluntary Sector,FG100,Members Allocation Fund,7100F,MEMBERS ALLOCATION FUND,13/06/2016,419724,450.00,NET,Together In Matson,53760RV
Gloucester City Council,23UE,Guildhall Bar And Caf�,LA210,Catering Provisions -Food,5110,COFFEE,13/06/2016,419737,168.29,NET,Ethical Addictions Ltd,11654N
Gloucester City Council,23UE,Guildhall Bar And Caf�,LA210,Catering Provisions -Liquor,5111,COCA COLA,13/06/2016,419742,136.00,NET,Cellar Supplies Cheltenham Ltd,01563L
Gloucester City Council,23UE,Guildhall Bar And Caf�,LA210,Catering Provisions -Liquor,5111,DRINKS,13/06/2016,419739,"2,005.41",NET,Cellar Supplies Cheltenham Ltd,01563L
Gloucester City Council,23UE,Guildhall Bar And Caf�,LA210,Catering Provisions -Liquor,5111,DRINKS,13/06/2016,419740,68.97,NET,Cellar Supplies Cheltenham Ltd,01563L
Gloucester City Council,23UE,Guildhall Bar And Caf�,LA210,Catering Provisions -Liquor,5111,DRINKS,13/06/2016,419741,16.49,NET,Cellar Supplies Cheltenham Ltd,01563L
Gloucester City Council,23UE,Guildhall Bar And Caf�,LA210,Catering Provisions -Liquor,5111,drinks for resale,13/06/2016,419743,"1,435.19",NET,Cellar Supplies Cheltenham Ltd,01563L
Gloucester City Council,23UE,Guildhall Bar And Caf�,LA210,Hire Of Equipment,5020,FLEXI GLASSES,13/06/2016,419736,416.50,NET,Cotswold Vending Services Ltd,16454A
Gloucester City Council,23UE,Guildhall Cinema,LA202,Hire Of Equipment,5020,film transport charges,13/06/2016,419671,219.59,NET,Nft Logistics Ltd,13505N
Gloucester City Council,23UE,Guildhall Events,LA200,Advertising And Publicity,5702,ADVERTS MAY16,13/06/2016,419755,180.00,NET,Local World Ltd,08556P
Gloucester City Council,23UE,Guildhall Events,LA200,Fees For Services Received,5350,JUNE/JULY WHATS ON,13/06/2016,419727,962.00,NET,Color Co,57707K
Gloucester City Council,23UE,REDACTED,REDACTED,REDACTED,REDACTED,REDACTED,13/06/2016,REDACTED,160.00,NET,REDACTED,REDACTED
Gloucester City Council,23UE,Hackney Carriages,HL100,Fees For Services Received,5350,DVLA electronic checks,13/06/2016,419665,43.50,NET,Intelligent Data Systems (Uk) Ltd,11067G
Gloucester City Council,23UE,Homelessness,CH120,Reimbursements,9100,out of hours service,13/06/2016,419688,500.00,NET,West Oxfordshire District Council,16429Z
Gloucester City Council,23UE,Homelessness,CH120,Removal And Storage Fees,5513,storage feed,13/06/2016,419687,135.00,NET,Advanced Removals & Storage Ltd,57142R
Gloucester City Council,23UE,Homelessness,CH120,Removal And Storage Fees,5513,storage fees,13/06/2016,419685,190.29,NET,Advanced Removals & Storage Ltd,57142R
Gloucester City Council,23UE,Investment Property,RB500,Consultants Fees,5349,S/C on account,13/06/2016,416526,316.75,NET,Alder King,02367D
Gloucester City Council,23UE,Investment Property,RB500,Consultants Fees,5349,S/C on account,13/06/2016,416535,338.25,NET,Alder King,02367D
Gloucester City Council,23UE,Investment Property,RB500,Consultants Fees,5349,S/C on account MAR-JUN16,13/06/2016,416525,194.00,NET,Alder King,02367D
Gloucester City Council,23UE,Kings Quarter,RY146,Contract Payments,0020,BOOKS,13/06/2016,419707,72.48,CAP,Riba Enterprises,09988U
Gloucester City Council,23UE,Off Street Car Parks,PP110,Contracted Services,6970,GC P&D HEAD CAMS,13/06/2016,419750,"2,094.24",NET,Apcoa Parking (Uk) Ltd,09954M
Gloucester City Council,23UE,Off Street Car Parks,PP110,Contracted Services,6970,GC VARIABLE ENFORCEMENT,13/06/2016,419751,"2,562.34",NET,Apcoa Parking (Uk) Ltd,09954M
Gloucester City Council,23UE,Rehousing,CH111,Fees For Services Received,5350,medical report,13/06/2016,419710,20.50,NET,Bartongate Surgery,05680S
Gloucester City Council,23UE,Retail Market - Landlord,HM300,Operational Equipment <5000,5012,compactor rental JUN16,13/06/2016,419638,280.56,NET,System Rental Uk Ltd,03239E
Gloucester City Council,23UE,Retail Market - Landlord,HM300,Sewerage And Environ Charges,3402,drain check,13/06/2016,419668,180.00,NET,The Drain Man Ltd,16460F
Gloucester City Council,23UE,23 Westgate Street,RB534,General Repair/Maint Buildings,3000,FLEECE HOTEL BUILDING WORKS,14/06/2016,419747,"5,171.94",NET,Rateavon Ltd,16381C
Gloucester City Council,23UE,Cems/Crems Admin,HC100,Maintenance Of Equipment,5030,best value assessment,14/06/2016,419715,310.00,NET,Institute Of Cemetery & Crematorium M'Ment,01116T
Gloucester City Council,23UE,Client Revs & Bens Contract,RT240,Bailiffs Fees,5368,vat only invoice,14/06/2016,419689,0.00,NET,Bristow & Sutor,05450M
Gloucester City Council,23UE,Client Revs & Bens Contract,RT240,Bailiffs Fees,5368,VAT ONLY INVOICE,14/06/2016,419719,0.00,NET,Phoenix Commercial Collections Ltd,13435J
Gloucester City Council,23UE,Council Streetcare Team,HI101,Printing,5300,dog fouling signs,14/06/2016,419769,888.00,NET,Alpha Graphics,03471Y
Gloucester City Council,23UE,Council Streetcare Team,HI101,Window Cleaning,3610,viewing chamber window cleaning,14/06/2016,419633,130.00,NET,Poles Apart Window Cleaning,11636R
Gloucester City Council,23UE,Crematorium,HC200,Repair/Maint Of Fixed Plant,3006,CARBON REAGENT,14/06/2016,419813,"1,629.96",NET,Facultatieve Technologies Ltd,51210H
Gloucester City Council,23UE,Development Management,PT200,Basic Pay - Temporary Staff,2751,TEMPORARY STAFF E BAKER W/E 22/5/16,14/06/2016,419721,"1,265.40",NET,The Oyster Partnership Limited,14900T
Gloucester City Council,23UE,Development Management,PT200,Basic Pay - Temporary Staff,2751,temp staff w/e 29/5/16,14/06/2016,419684,"1,239.60",NET,The Oyster Partnership Limited,14900T
Gloucester City Council,23UE,REDACTED,REDACTED,REDACTED,REDACTED,REDACTED,14/06/2016,REDACTED,60.00,NET,REDACTED,REDACTED
Gloucester City Council,23UE,Flooding And Drainage,HE306,Other Minor Supplies Services,5590,KNOTWEED SPRAYING,14/06/2016,419773,45.00,NET,Greenfields Garden Services Ltd,48130G
Gloucester City Council,23UE,General Works Fund,RY203,Contract Payments,0020,CREM ROOF,14/06/2016,419775,"29,641.18",CAP,Central Roofing & Building Services Ltd,59480W
Gloucester City Council,23UE,REDACTED,REDACTED,REDACTED,REDACTED,REDACTED,14/06/2016,REDACTED,146.69,NET,REDACTED,REDACTED
Gloucester City Council,23UE,REDACTED,REDACTED,REDACTED,REDACTED,REDACTED,14/06/2016,REDACTED,100.00,NET,REDACTED,REDACTED
Gloucester City Council,23UE,REDACTED,REDACTED,REDACTED,REDACTED,REDACTED,14/06/2016,REDACTED,130.00,NET,REDACTED,REDACTED
Gloucester City Council,23UE,REDACTED,REDACTED,REDACTED,REDACTED,REDACTED,14/06/2016,REDACTED,216.56,NET,REDACTED,REDACTED
Gloucester City Council,23UE,REDACTED,REDACTED,REDACTED,REDACTED,REDACTED,14/06/2016,REDACTED,"2,000.00",NET,REDACTED,REDACTED
Gloucester City Council,23UE,REDACTED,REDACTED,REDACTED,REDACTED,REDACTED,14/06/2016,REDACTED,"2,000.00",NET,REDACTED,REDACTED
Gloucester City Council,23UE,Guildhall Exhibitions,LA204,Fees For Services Received,5350,sale of artwork,14/06/2016,419883,21.25,NET,REDACTED,REDACTED
Gloucester City Council,23UE,Homelessness,CH120,Removal And Storage Fees,5513,STORAGE FEES,14/06/2016,419712,270.00,NET,Advanced Removals & Storage Ltd,57142R
Gloucester City Council,23UE,Homelessness,CH120,Removal And Storage Fees,5513,STORAGE FEES,14/06/2016,419713,90.00,NET,Advanced Removals & Storage Ltd,57142R
Gloucester City Council,23UE,Homelessness,CH120,Removal And Storage Fees,5513,STORAGE FEES,14/06/2016,419714,247.50,NET,Advanced Removals & Storage Ltd,57142R
Gloucester City Council,23UE,REDACTED,REDACTED,REDACTED,REDACTED,REDACTED,14/06/2016,REDACTED,368.20,NET,REDACTED,REDACTED
Gloucester City Council,23UE,REDACTED,REDACTED,REDACTED,REDACTED,REDACTED,14/06/2016,REDACTED,489.44,NET,REDACTED,REDACTED
Gloucester City Council,23UE,REDACTED,REDACTED,REDACTED,REDACTED,REDACTED,14/06/2016,REDACTED,400.00,NET,REDACTED,REDACTED
Gloucester City Council,23UE,REDACTED,REDACTED,REDACTED,REDACTED,REDACTED,14/06/2016,REDACTED,490.00,NET,REDACTED,REDACTED
Gloucester City Council,23UE,Investment Property,RB500,General Repair/Maint Buildings,3000,April 2016,14/06/2016,419310,"34,035.45",NET,Rf Gardiner Limited,12299B
Gloucester City Council,23UE,Kings Quarter,RY146,Contract Payments,0020,Bus Station hoarding works,14/06/2016,419725,"2,038.50",CAP,Rf Gardiner Limited,12299B
Gloucester City Council,23UE,Marchants,LT108,Materials For Sale,5080,Sales on Tickets Mar 2016,14/06/2016,418650,"1,838.00",NET,Marchants Coaches Ltd,48151Y
Gloucester City Council,23UE,National Express,LT105,Materials For Sale,5080,tickets sold on commission,14/06/2016,419803,"11,521.90",NET,National Express Ltd,31455K
Gloucester City Council,23UE,National Express,LT105,Sale Of Goods And Services,9230,tickets sold on commission,14/06/2016,419803,"-1,093.87",NET,National Express Ltd,31455K
Gloucester City Council,23UE,Nms Contract,HI102,Contracted Services,6970,MAY16 commodity top up,14/06/2016,419764,"25,856.00",NET,Enterprise (Aol) Ltd,06695G
Gloucester City Council,23UE,Nms Contract,HI102,Contracted Services,6970,MAY16 pension recharge,14/06/2016,419760,"10,315.81",NET,Enterprise (Aol) Ltd,06695G
Gloucester City Council,23UE,Parks Contract Management,LP100,Maint Of Grounds - General,3030,Lannett play area works,14/06/2016,419726,880.00,NET,Greenfields Garden Services Ltd,48130G
Gloucester City Council,23UE,Planning Policy & Heritage,PT300,Basic Pay - Temporary Staff,2751,TEMPORARY STAFF W/E 22/5/16,14/06/2016,419720,"2,276.31",NET,The Oyster Partnership Limited,14900T
Gloucester City Council,23UE,Planning Policy & Heritage,PT300,Basic Pay - Temporary Staff,2751,temp staff w/e 29/5/16,14/06/2016,419683,"2,286.20",NET,The Oyster Partnership Limited,14900T
Gloucester City Council,23UE,Planning Policy & Heritage,PT300,Fees For Services Received,5350,APR16 RETAIL IMPACT STUDY LIDL,14/06/2016,419705,500.00,NET,Dpds Ltd,05404V
Gloucester City Council,23UE,Rehousing,CH111,Fees For Services Received,5350,MEDICAL REPORT,14/06/2016,419709,20.50,NET,Bartongate Surgery,05680S
Gloucester City Council,23UE,Rehousing,CH111,Fees For Services Received,5350,MEDICAL REPORT,14/06/2016,419711,20.50,NET,Bartongate Surgery,05680S
Gloucester City Council,23UE,Retail Market - Landlord,HM300,Cleaning / Domestic Equipment,5011,Services May 2016,14/06/2016,418654,2.57,NET,Initial Washroom Solutions,06143R
Gloucester City Council,23UE,Retail Market - Landlord,HM300,Trade Refuse Collection,3630,food waste MAY16,14/06/2016,419718,120.00,NET,B & S Pointon Ltd,06253G
Gloucester City Council,23UE,Robinswood All Paths Project,LY162,Contract Payments,0020,KISSGATE,14/06/2016,419703,402.00,CAP,Centrewire Ltd,54156P
Gloucester City Council,23UE,The Arbor,HC501,Catering Provisions -Food,5110,food,14/06/2016,419729,286.93,NET,Bidvest Foodservice (3663),55585U
Gloucester City Council,23UE,Tic Rovercard Sales,LT101,Materials For Sale,5080,tickets sold on commission,14/06/2016,419322,"2,947.40",NET,Stagecoach Services Ltd,56554W
Gloucester City Council,23UE,Tic Rovercard Sales,LT101,Sale Of Goods And Services,9230,tickets sold on commission,14/06/2016,419322,-245.62,NET,Stagecoach Services Ltd,56554W
Gloucester City Council,23UE,Tic Theatre Ticket Sales,LT107,Materials For Sale,5080,phedre ticket sales 24-28/5/16,14/06/2016,419882,76.00,NET,Kings Theatre,54213X
Gloucester City Council,23UE,Tic Theatre Ticket Sales,LT107,Materials For Sale,5080,TICKET SALES FOR THE SENTENCE 3/6/16,14/06/2016,419884,16.00,NET,Spaniel In The Works Theatre Company,10588K
Gloucester City Council,23UE,Tic Theatre Ticket Sales,LT107,Materials For Sale,5080,"TICKET SALES MAN UP JONNY, FLUFFY PUNK",14/06/2016,419885,75.00,NET,Spaniel In The Works Theatre Company,10588K
Gloucester City Council,23UE,Tic Theatre Ticket Sales,LT107,Other Minor Income,9900,TICKET SALES FOR THE SENTENCE 3/6/16,14/06/2016,419884,-0.10,NET,Spaniel In The Works Theatre Company,10588K
Gloucester City Council,23UE,Tic Theatre Ticket Sales,LT107,Other Minor Income,9900,"TICKET SALES MAN UP JONNY, FLUFFY PUNK",14/06/2016,419885,-0.45,NET,Spaniel In The Works Theatre Company,10588K
Gloucester City Council,23UE,Tic Theatre Ticket Sales,LT107,Sale Of Goods And Services,9230,phedre ticket sales 24-28/5/16,14/06/2016,419882,-6.33,NET,Kings Theatre,54213X
Gloucester City Council,23UE,Tic Theatre Ticket Sales,LT107,Sale Of Goods And Services,9230,TICKET SALES FOR THE SENTENCE 3/6/16,14/06/2016,419884,-1.33,NET,Spaniel In The Works Theatre Company,10588K
Gloucester City Council,23UE,Tic Theatre Ticket Sales,LT107,Sale Of Goods And Services,9230,"TICKET SALES MAN UP JONNY, FLUFFY PUNK",14/06/2016,419885,-6.25,NET,Spaniel In The Works Theatre Company,10588K
Gloucester City Council,23UE,Aspire Admin Charges,LC105,Security Services Fees,5351,Services July 2016,15/06/2016,419990,184.94,NET,G4s Cash Solutions (Uk) Ltd,04290V
Gloucester City Council,23UE,Business Transformation & Tech,RT700,Computer Software Maintenance,5427,FOCUS SYSTEM CONSULTANCY,15/06/2016,419758,475.00,NET,Ash Information Systems Ltd,54890V
Gloucester City Council,23UE,Business Transformation & Tech,RT700,Computer Software Maintenance,5427,Maintenance,15/06/2016,419959,"2,223.67",NET,Civica Uk Ltd,10841X
Gloucester City Council,23UE,Business Transformation & Tech,RT700,Computer Software Maintenance,5427,MEA Licence Renewal,15/06/2016,419958,"114,812.49",NET,Civica Uk Ltd,10841X
Gloucester City Council,23UE,Business Transformation & Tech,RT700,Internet Service Provider Fees,5429,Charges 2016/17,15/06/2016,418908,"10,260.00",NET,Virgin Media Business,01869B
Gloucester City Council,23UE,Business Transformation & Tech,RT700,Mobile Phones,5409,acct 78441964/6 charges,15/06/2016,418943,423.37,NET,Everything Everywhere Ltd (T-Mobile),57543S
Gloucester City Council,23UE,Business Transformation & Tech,RT700,Telephones And Fax,5410,Line Rental May- Jun 2016,15/06/2016,418925,16.99,NET,Virgin Media Payments Ltd,09376J
Gloucester City Council,23UE,REDACTED,REDACTED,REDACTED,REDACTED,REDACTED,15/06/2016,REDACTED,200.00,NET,REDACTED,REDACTED
Gloucester City Council,23UE,REDACTED,REDACTED,REDACTED,REDACTED,REDACTED,15/06/2016,REDACTED,80.00,NET,REDACTED,REDACTED
Gloucester City Council,23UE,Cems/Crems Admin,HC100,Security Services Fees,5351,cash processing MAY16,15/06/2016,419779,14.11,NET,G4s Cash Solutions (Uk) Ltd,04290V
Gloucester City Council,23UE,Cems/Crems Admin,HC100,Security Services Fees,5351,Services July 2016,15/06/2016,419990,105.42,NET,G4s Cash Solutions (Uk) Ltd,04290V
Gloucester City Council,23UE,City Museum And Art Gallery,LM200,Exhibits And Collections,5038,Subscription,15/06/2016,419926,75.00,NET,Touring Exhibitions Group,16493P
Gloucester City Council,23UE,City Museum And Art Gallery,LM200,Security Services Fees,5351,Services July 2016,15/06/2016,419990,92.47,NET,G4s Cash Solutions (Uk) Ltd,04290V
Gloucester City Council,23UE,Corporate Expenses,RC110,Subscriptions,5600,2016/17 membership fees,15/06/2016,418853,330.00,NET,District Councils Network,16387P
Gloucester City Council,23UE,Corporate Reporting /Financing,RC504,Fees For Services Received,5350,childcare vouchers,15/06/2016,419673,43.55,NET,Wider Plan Ltd ( Formerly Kiddivouchers),07893B
Gloucester City Council,23UE,Council Streetcare Team,HI101,Maint Of Grounds - General,3030,catering for green flag inspection,15/06/2016,419746,25.00,NET,Gloucestershire Wildlife Trust,15576A
Gloucester City Council,23UE,Development Management,PT200,Advertising And Publicity,5702,Advertisement 10/06/16,15/06/2016,419925,292.16,NET,Local World Ltd,08556P
Gloucester City Council,23UE,Docks Complex - Services,RB100,Security Services Fees,5351,cash processing MAY16,15/06/2016,419779,3.53,NET,G4s Cash Solutions (Uk) Ltd,04290V
Gloucester City Council,23UE,Docks Complex - Services,RB100,Security Services Fees,5351,Services July 2016,15/06/2016,419990,276.20,NET,G4s Cash Solutions (Uk) Ltd,04290V
Gloucester City Council,23UE,Financial Services,RT200,Employee Related Insurances,2960,Renewal Premium,15/06/2016,419974,"4,789.45",NET,Zurich Municipal,06385M
Gloucester City Council,23UE,Financial Services,RT200,Employee Related Insurances,2960,Renewal Premium,15/06/2016,419975,"28,786.06",NET,Zurich Municipal,06385M
Gloucester City Council,23UE,Financial Services,RT200,Employee Related Insurances,2960,Renewal Premium,15/06/2016,419976,"221,069.94",NET,Zurich Municipal,06385M
Gloucester City Council,23UE,Financial Services,RT200,Employee Related Insurances,2960,Renewal Premium,15/06/2016,419977,"3,634.86",NET,Zurich Municipal,06385M
Gloucester City Council,23UE,Financial Services,RT200,Employee Related Insurances,2960,Renewal Premium,15/06/2016,419978,"13,923.11",NET,Zurich Municipal,06385M
Gloucester City Council,23UE,Financial Services,RT200,Fees For Services Received,5350,LEGAL SERVICES RE ROYAL MAIL VAT,15/06/2016,419708,"1,000.00",NET,Mishcon De Reya,15787C
Gloucester City Council,23UE,Financial Services,RT200,Vocational Training,2970,delegate to BRR seminar 12MAY16,15/06/2016,418877,150.00,NET,Lg Futures,11251S
Gloucester City Council,23UE,Folk Museum,LM210,Security Services Fees,5351,Services July 2016,15/06/2016,419990,92.47,NET,G4s Cash Solutions (Uk) Ltd,04290V
Gloucester City Council,23UE,Gloucester Guildhall,LA100,General Repair/Maint Buildings,3000,castors,15/06/2016,418880,77.32,NET,H C Slingsby Plc,16430R
Gloucester City Council,23UE,Gloucester Guildhall,LA100,General Repair/Maint Buildings,3000,lamps,15/06/2016,419994,115.39,NET,Lyco Direct Limited,51364C
Gloucester City Council,23UE,Gloucester Guildhall,LA100,General Repair/Maint Buildings,3000,lamps,15/06/2016,419995,80.74,NET,Lyco Direct Limited,51364C
Gloucester City Council,23UE,Gloucester Guildhall,LA100,Security Services Fees,5351,Services July 2016,15/06/2016,419990,92.47,NET,G4s Cash Solutions (Uk) Ltd,04290V
Gloucester City Council,23UE,Grants To Voluntary Sector,FG100,Abcd Grants,7100A,members allocation grant,15/06/2016,419960,"2,000.00",NET,51 Gloucester(Lonsdale Methodist) Scout Group,16492S
Gloucester City Council,23UE,Grants To Voluntary Sector,FG100,Abcd Grants,7100A,members allocation grant,15/06/2016,419961,500.00,NET,Jigsaw,16491U
Gloucester City Council,23UE,Guildhall Bar And Caf�,LA210,Catering Provisions -Liquor,5111,BEERGAS,15/06/2016,419722,25.51,NET,Boc Ltd,59172L
Gloucester City Council,23UE,REDACTED,REDACTED,REDACTED,REDACTED,REDACTED,15/06/2016,REDACTED,374.80,NET,REDACTED,REDACTED
Gloucester City Council,23UE,REDACTED,REDACTED,REDACTED,REDACTED,REDACTED,15/06/2016,REDACTED,310.00,NET,REDACTED,REDACTED
Gloucester City Council,23UE,Guildhall Events,LA200,Security Services Fees,5351,MAY16 SIA door staff,15/06/2016,419811,"2,231.13",NET,Nsgl Ltd (Security Acct),12539E
Gloucester City Council,23UE,REDACTED,REDACTED,REDACTED,REDACTED,REDACTED,15/06/2016,REDACTED,300.00,NET,REDACTED,REDACTED
Gloucester City Council,23UE,Investment Property,RB500,General Repair/Maint Buildings,3000,Repairs,15/06/2016,419924,450.00,NET,H D Masonry,16468N
Gloucester City Council,23UE,Legal Services,RS200,Fees For Services Received,5350,One Legal costs,15/06/2016,418302,"21,575.00",NET,Tewkesbury Borough Council,43800C
Gloucester City Council,23UE,Managing Director,RE100,Subscriptions,5600,Membership renewal 2016/17,15/06/2016,419627,398.00,NET,Solace Group,07481F
Gloucester City Council,23UE,Off Street Car Parks,PP110,Computer Software Maintenance,5427,cashless parking fees,15/06/2016,419784,"1,505.23",NET,Chipside Ltd,06535T
Gloucester City Council,23UE,Off Street Car Parks,PP110,Computer Software Maintenance,5427,cashless parking fees,15/06/2016,419785,776.25,NET,Chipside Ltd,06535T
Gloucester City Council,23UE,Off Street Car Parks,PP110,Contracted Services,6970,cashless parking fees,15/06/2016,418906,"1,520.15",NET,Chipside Ltd,06535T
Gloucester City Council,23UE,Off Street Car Parks,PP110,Contracted Services,6970,Cashless Parking Fees,15/06/2016,418907,776.92,NET,Chipside Ltd,06535T
Gloucester City Council,23UE,Taxi Marshalling Scheme,HL101,Taxi Marshals,5387,taxi marshalls 25/3/16,15/06/2016,419652,40.26,NET,Cuff Facilities Ltd,16436C
Gloucester City Council,23UE,Taxi Marshalling Scheme,HL101,Taxi Marshals,5387,taxi marshalls 29/4-30/4/16,15/06/2016,419650,172.50,NET,Cuff Facilities Ltd,16436C
Gloucester City Council,23UE,Taxi Marshalling Scheme,HL101,Taxi Marshals,5387,taxi marshalls 6/5 - 7/5/16,15/06/2016,419651,172.50,NET,Cuff Facilities Ltd,16436C
Gloucester City Council,23UE,Taxi Marshalling Scheme,HL101,Taxi Marshals,5387,taxi marshalls 8/4-9/4/16,15/06/2016,419654,172.50,NET,Cuff Facilities Ltd,16436C
Gloucester City Council,23UE,The Arbor,HC501,Catering Provisions -Food,5110,Food,15/06/2016,419979,403.45,NET,Bidvest Foodservice (3663),55585U
Gloucester City Council,23UE,Theatre Tokens,LT106,Materials For Sale,5080,tickets sold on commission,15/06/2016,419781,30.00,NET,Society Of London Theatre,05656Z
Gloucester City Council,23UE,Theatre Tokens,LT106,Sale Of Goods And Services,9230,tickets sold on commission,15/06/2016,419781,-1.50,NET,Society Of London Theatre,05656Z
Gloucester City Council,23UE,Tic Theatre Ticket Sales,LT107,Materials For Sale,5080,City walking tours May 2016,15/06/2016,419992,60.00,NET,Gloucester Civic Trust - Tour Account,08084L
Gloucester City Council,23UE,Tic Theatre Ticket Sales,LT107,Other Minor Income,9900,City walking tours May 2016,15/06/2016,419992,-0.75,NET,Gloucester Civic Trust - Tour Account,08084L
Gloucester City Council,23UE,Tic Theatre Ticket Sales,LT107,Sale Of Goods And Services,9230,City walking tours May 2016,15/06/2016,419992,-2.50,NET,Gloucester Civic Trust - Tour Account,08084L
Gloucester City Council,23UE,Tourism Marketing,LT100,Security Services Fees,5351,Services July 2016,15/06/2016,419990,92.47,NET,G4s Cash Solutions (Uk) Ltd,04290V
Gloucester City Council,23UE,Business Transformation & Tech,RT700,Computer Software <5000,5425,Geodatabse Installation,16/06/2016,419935,"1,569.50",NET,Esri (Uk) Ltd,57836X
Gloucester City Council,23UE,Cemeteries,HC300,Basic Pay - Temporary Staff,2751,w/e 22/5/2016 TEMPORARY STAFF,16/06/2016,419308,439.88,NET,Premiere Employment Group Ltd,55468Z
Gloucester City Council,23UE,Cemeteries,HC300,Basic Pay - Temporary Staff,2751,temporary staff w/e 29/5/16,16/06/2016,419677,351.90,NET,Premiere Employment Group Ltd,55468Z
Gloucester City Council,23UE,Cemeteries,HC300,Basic Pay - Temporary Staff,2751,temporary staff w/e 22/5/16,16/06/2016,419675,263.93,NET,Premiere Employment Group Ltd,55468Z
Gloucester City Council,23UE,Cemeteries,HC300,Basic Pay - Temporary Staff,2751,TEMP STAFF W/E 29/5/16,16/06/2016,419676,439.88,NET,Premiere Employment Group Ltd,55468Z
Gloucester City Council,23UE,Cemeteries,HC300,Clothing,5200,safetywear,16/06/2016,419667,232.76,NET,Safpro Industrial Supply Co,39190W
Gloucester City Council,23UE,Cemeteries,HC300,Operational Materials,5070,2M HOSE,16/06/2016,419761,35.00,NET,Teleshore (Uk) Ltd,56819G
Gloucester City Council,23UE,Cemeteries,HC300,Trade Refuse Tipping Fees,6297,skip exchange,16/06/2016,419809,205.00,NET,Allstone Sand & Gravel Aggregates Ltd,00940M
Gloucester City Council,23UE,Cemeteries,HC300,Trade Refuse Tipping Fees,6297,skip exchange,16/06/2016,419810,"1,051.20",NET,Allstone Sand & Gravel Aggregates Ltd,00940M
Gloucester City Council,23UE,Cemeteries,HC300,Trade Refuse Tipping Fees,6297,SKIP EXCHANGE,16/06/2016,419808,215.00,NET,Allstone Sand & Gravel Aggregates Ltd,00940M
Gloucester City Council,23UE,Cemeteries,HC300,Vocational Training,2970,Management Modules,16/06/2016,419953,435.00,NET,Institute Of Cemetery & Crematorium M'Ment,01116T
Gloucester City Council,23UE,Civica Admin Charges,RT105,Postages,5400,acct 0870585007 - MAY16,16/06/2016,419790,"1,039.56",NET,Royal Mail S.Wales & South West,35830S
Gloucester City Council,23UE,Civica Contract Revs & Bens,RT250,Computer Software <5000,5425,Pingit Checkout,16/06/2016,419955,"1,155.00",NET,Civica Uk Ltd,10841X
Gloucester City Council,23UE,Client Revs & Bens Contract,RT240,Bailiffs Fees,5368,VAT due on statutory fees,16/06/2016,419934,0.00,NET,Bristow & Sutor,05450M
Gloucester City Council,23UE,Client Revs & Bens Contract,RT240,Bailiffs Fees,5368,VAT on statutory fees,16/06/2016,419933,0.00,NET,Bristow & Sutor,05450M
Gloucester City Council,23UE,Contact Centre,RB300,Postages,5400,post a/c 0074842000 NOV15-MAY16,16/06/2016,419783,94.23,NET,Royal Mail S.Wales & South West,35830S
Gloucester City Council,23UE,Contact Centre,RB300,Postages,5400,post a/c 0252446000 20/5/16-2/6/16,16/06/2016,419780,"1,479.48",NET,Royal Mail S.Wales & South West,35830S
Gloucester City Council,23UE,Council Streetcare Team,HI101,Maint Of Grounds - General,3030,King George V access road refurb,16/06/2016,419629,"1,864.00",NET,Greenfields Garden Services Ltd,48130G
Gloucester City Council,23UE,Countryside Unit,LP201,Livestock Foodstuff,5841,Various Items,16/06/2016,419939,7.00,NET,Countrywide Farmers,55687J
Gloucester City Council,23UE,Crematorium,HC200,Memorial Plaques,5053,memorial post & plaque,16/06/2016,419768,89.80,NET,Treasured Memories Limited,11058H
Gloucester City Council,23UE,Crematorium,HC200,Memorial Plaques,5053,plaque,16/06/2016,419767,63.45,NET,Treasured Memories Limited,11058H
Gloucester City Council,23UE,Crematorium,HC200,Repair/Maint Of Fixed Plant,3006,BAGS,16/06/2016,419731,11.55,NET,Gillman & Son (Electrical) Ltd,21632RV
Gloucester City Council,23UE,Development Management,PT200,Microfilming / Cd-Rom Storage,5330,Storage May 2016,16/06/2016,419937,22.00,NET,Transmedia Technology Ltd,08635T
Gloucester City Council,23UE,Economic Development,FP300,Business Grant,7116,Business Rent Grant,16/06/2016,419946,500.00,NET,Cookes Coffee And Curios,16123D
Gloucester City Council,23UE,Folk Museum,LM210,Other Catering Provisions,5112,Smooth Roast Coffee,16/06/2016,419963,12.10,NET,Ukv Solutions Ltd,14864V
Gloucester City Council,23UE,Gloucester Partnership,FP106,Other Minor Supplies Services,5590,Hosting June 16 - June 17,16/06/2016,419951,995.00,NET,Icon.Net,52505Z
Gloucester City Council,23UE,Grants To Voluntary Sector,FG100,Abcd Grants,7100A,Your Gloucester Grant,16/06/2016,419962,250.00,NET,Chillingworth Mews Residents Group,16490W
Gloucester City Council,23UE,Green Garden Waste,HI105,Fees For Services Received,5350,Additional Work,16/06/2016,419956,"3,546.44",NET,Civica Uk Ltd,10841X
Gloucester City Council,23UE,Hackney Carriages,HL100,Fees For Services Received,5350,DBS Charges,16/06/2016,419928,440.00,NET,Disclosure And Barring Service,00119W
Gloucester City Council,23UE,REDACTED,REDACTED,REDACTED,REDACTED,REDACTED,16/06/2016,REDACTED,370.00,NET,REDACTED,REDACTED
Gloucester City Council,23UE,Horsbere Brook Planting Ea,LY147,Contract Payments,0020,Various Items,16/06/2016,419939,91.65,CAP,Countrywide Farmers,55687J
Gloucester City Council,23UE,Land Searches,RO300,Subscriptions,5600,Subscription,16/06/2016,419923,"2,175.53",NET,Dx Network Services Ltd,02593S
Gloucester City Council,23UE,Planning Policy & Heritage,PT300,Repair/Maint Of Monuments,3004,Plaque,16/06/2016,419950,270.87,NET,Leander Architectural,02831Z
Gloucester City Council,23UE,Rehousing,CH111,Fees For Services Received,5350,Medical Reports,16/06/2016,419686,20.50,NET,Dr R Watkins & Partners,59237H
Gloucester City Council,23UE,Statutory Testing,RS310,Asbestos,3022,Technical Services,16/06/2016,419981,940.00,NET,Mss Group,14469F
Gloucester City Council,23UE,Taxi Marshalling Scheme,HL101,Taxi Marshals,5387,taxi marshalls 29/1-30/1/16,16/06/2016,419663,172.50,NET,Cuff Facilities Ltd,16436C
Gloucester City Council,23UE,The Arbor,HC501,Catering Provisions -Food,5110,food,16/06/2016,419672,169.13,NET,Janes Pantry,24500W
Gloucester City Council,23UE,The Arbor,HC501,Catering Provisions -Food,5110,FOOD,16/06/2016,419305,222.39,NET,Janes Pantry,24500W
Gloucester City Council,23UE,The Arbor,HC501,Cleaning Materials,3600,Arbor sanitary disposal,16/06/2016,417856,34.56,NET,Minster Cleaning Services,02158R
Gloucester City Council,23UE,Vehicles,RS140,Fuel,4012,Fuel,16/06/2016,419982,168.17,NET,Allstar Business Solutions Ltd (Arval),06594A
Gloucester City Council,23UE,Vehicles,RS140,Fuel,4012,vehicle fuel,16/06/2016,419791,289.38,NET,Allstar Business Solutions Ltd (Arval),06594A
Gloucester City Council,23UE,16 Commercial Road,RB539,General Repair/Maint Buildings,3000,16 COMMERCIAL ROAD WORKS,17/06/2016,419776,"16,338.14",NET,Central Roofing & Building Services Ltd,59480W
Gloucester City Council,23UE,Client Revs & Bens Contract,RT240,Fees For Services Received,5350,Annual Subsidy Health Check,17/06/2016,419932,"14,400.00",NET,Civica Uk Ltd,10841X
Gloucester City Council,23UE,Countryside Unit,LP201,Routine R And M - Vehicles,4011,Various Items,17/06/2016,419965,347.20,NET,Loxston Groundcare,14309F
Gloucester City Council,23UE,Docks Complex - Services,RB100,Recycling,3631,BLACKFRIARS RECYCLING,17/06/2016,419757,18.50,NET,Printwaste Recycling,57114W
Gloucester City Council,23UE,Docks Complex - Services,RB100,Recycling,3631,DOCKS RECYCLING,17/06/2016,419754,240.90,NET,Printwaste Recycling,57114W
Gloucester City Council,23UE,Docks Complex - Services,RB100,Recycling,3631,GUILDHALL RECYCLING,17/06/2016,419759,51.90,NET,Printwaste Recycling,57114W
Gloucester City Council,23UE,Docks Complex - Services,RB100,Security Equipment Serv/Repair,3038,alarm maintenance MAY16-APR17,17/06/2016,419634,375.00,NET,Avon Alarms Ltd,02280T
Gloucester City Council,23UE,Eastgate Rooftop Emerg Works,RY159,Contract Payments,0020,Eastgate car park works,17/06/2016,419954,"61,856.36",CAP,Universal Sealants (Uk) Ltd,15743Z
Gloucester City Council,23UE,Flooding And Drainage,HE306,Maint Of Grounds - General,3030,Vegetation Works,17/06/2016,419972,270.00,NET,Rdb Safety Boat Ltd,13507J
Gloucester City Council,23UE,Flooding And Drainage,HE306,Maint Of Grounds - General,3030,Vegetation Works,17/06/2016,419973,90.00,NET,Rdb Safety Boat Ltd,13507J
Gloucester City Council,23UE,Hillfield Gardens S106,LY112,Contract Payments,0020,A3 Musketeer,17/06/2016,419664,995.00,CAP,Fitzpatrick Woolmer Design & Publishing Ltd,04091D
Gloucester City Council,23UE,REDACTED,REDACTED,REDACTED,REDACTED,REDACTED,17/06/2016,REDACTED,371.04,NET,REDACTED,REDACTED
Gloucester City Council,23UE,REDACTED,REDACTED,REDACTED,REDACTED,REDACTED,17/06/2016,REDACTED,530.00,NET,REDACTED,REDACTED
Gloucester City Council,23UE,Investment Property,RB500,General Repair/Maint Buildings,3000,St Oswalds Priory repairs,17/06/2016,419666,"2,196.00",NET,King Builders (Gloucester) Ltd,25810S
Gloucester City Council,23UE,Investment Property,RB500,Lift Maintenance,3051,BLACKFRIARS LIFT WORKS,17/06/2016,419789,150.00,NET,Pickerings Europe Ltd,58816U
Gloucester City Council,23UE,Pollution Control,HE300,Fees For Services Received,5350,Citroen Collection & Disposal,17/06/2016,419942,80.00,NET,Harry Buckland,16135W
Gloucester City Council,23UE,Pollution Control,HE300,Fees For Services Received,5350,Fiat Punto Collection & Disposal,17/06/2016,419941,80.00,NET,Harry Buckland,16135W
Gloucester City Council,23UE,Pollution Control,HE300,Fees For Services Received,5350,Nissan Micra Collection & Disposal,17/06/2016,419943,80.00,NET,Harry Buckland,16135W
Gloucester City Council,23UE,Pollution Control,HE300,Fees For Services Received,5350,TOYOTA COROLLA COLLECT & DOSPOSAL,17/06/2016,419756,150.00,NET,Harry Buckland,16135W
Gloucester City Council,23UE,S106 Hempsted Way Play Area,LY156,Contract Payments,0020,Hempsted rubble/vegetation clearance,17/06/2016,419630,643.75,CAP,Greenfields Garden Services Ltd,48130G
Gloucester City Council,23UE,Taxi Marshalling Scheme,HL101,Taxi Marshals,5387,taxi marshalls 11/3-12/3/16,17/06/2016,419659,172.50,NET,Cuff Facilities Ltd,16436C
Gloucester City Council,23UE,Taxi Marshalling Scheme,HL101,Taxi Marshals,5387,taxi marshalls 12/2-13/2/16,17/06/2016,419661,172.50,NET,Cuff Facilities Ltd,16436C
Gloucester City Council,23UE,Taxi Marshalling Scheme,HL101,Taxi Marshals,5387,taxi marshalls 13/5-14/5/16,17/06/2016,419938,172.50,NET,Cuff Facilities Ltd,16436C
Gloucester City Council,23UE,Taxi Marshalling Scheme,HL101,Taxi Marshals,5387,taxi marshalls 15/4-16/4/16,17/06/2016,419657,172.50,NET,Cuff Facilities Ltd,16436C
Gloucester City Council,23UE,Taxi Marshalling Scheme,HL101,Taxi Marshals,5387,taxi marshalls 19/2-20/2/16,17/06/2016,419660,172.50,NET,Cuff Facilities Ltd,16436C
Gloucester City Council,23UE,Taxi Marshalling Scheme,HL101,Taxi Marshals,5387,taxi marshalls 22/4-23/4/16,17/06/2016,419656,172.50,NET,Cuff Facilities Ltd,16436C
Gloucester City Council,23UE,Taxi Marshalling Scheme,HL101,Taxi Marshals,5387,Taxi marshalls 2/4-3/4/16,17/06/2016,419655,172.50,NET,Cuff Facilities Ltd,16436C
Gloucester City Council,23UE,Taxi Marshalling Scheme,HL101,Taxi Marshals,5387,taxi marshalls 25/3-26/3/16,17/06/2016,419658,172.50,NET,Cuff Facilities Ltd,16436C
Gloucester City Council,23UE,Taxi Marshalling Scheme,HL101,Taxi Marshals,5387,taxi marshalls 5/2-6/2/16,17/06/2016,419662,172.50,NET,Cuff Facilities Ltd,16436C
Gloucester City Council,23UE,Westgate Leisure Area S106,LY155,Contract Payments,0020,Westgate park works,17/06/2016,419359,835.00,CAP,Tweedie Evans Consulting Ltd,16444D
Gloucester City Council,23UE,Business Transformation & Tech,RT700,Licences,5703,Annual Software Support,20/06/2016,418859,"1,668.81",NET,Northgate Public Services Uk Ltd,08982S
Gloucester City Council,23UE,Bus Station,RB400,General Repair/Maint Buildings,3000,a4 snapframe,20/06/2016,419691,52.50,NET,Hanman Split Ltd,56889J
Gloucester City Council,23UE,Christmas Lights,GY006,Contract Payments,0020,REPLACEMENT CHANDELIERS,20/06/2016,419390,"5,517.83",CAP,Blachere Illuminations Uk Ltd,15818T
Gloucester City Council,23UE,City Museum And Art Gallery,LM200,Advertising And Publicity,5702,Domain Transfer Costs,20/06/2016,419066,16.25,NET,Third Floor Design Ltd,16420U
Gloucester City Council,23UE,City Museum And Art Gallery,LM200,Advertising And Publicity,5702,web support & domain name transfer,20/06/2016,419067,32.50,NET,Third Floor Design Ltd,16420U
Gloucester City Council,23UE,Civica Contract Revs & Bens,RT250,Fees For Services Received,5350,JULY2016 REVS & BENEFITS SERVICE,20/06/2016,419304,"137,797.00",NET,Civica Uk Ltd,10841X
Gloucester City Council,23UE,Client Revs & Bens Contract,RT240,Fees For Services Received,5350,Staff Memberships April 2016,20/06/2016,419163,522.00,NET,Aspire Sports & Cultural Trust,08135V
Gloucester City Council,23UE,Disabled Facilities Grants,CY013,Disabled Facility Grants,0074,Disabled Facilities Grant MDF5177 final fee,20/06/2016,420092,"5,007.57",CAP,Mears Home Improvement Ltd,00096G
Gloucester City Council,23UE,Guildhall Bar And Caf�,LA210,Catering Provisions -Food,5110,milk,20/06/2016,419799,4.76,NET,Total Produce Gloucester,12645E
Gloucester City Council,23UE,Guildhall Bar And Caf�,LA210,Catering Provisions -Food,5110,milk,20/06/2016,419800,4.76,NET,Total Produce Gloucester,12645E
Gloucester City Council,23UE,Guildhall Bar And Caf�,LA210,Catering Provisions -Food,5110,milk,20/06/2016,419801,4.76,NET,Total Produce Gloucester,12645E
Gloucester City Council,23UE,Guildhall Bar And Caf�,LA210,Catering Provisions -Food,5110,milk,20/06/2016,419802,4.76,NET,Total Produce Gloucester,12645E
Gloucester City Council,23UE,Guildhall Lettings,LA400,Artists Fees,5355,Client Sessions May 2016,20/06/2016,420091,80.00,NET,Gloucestershire Music Makers,13755L
Gloucester City Council,23UE,Guildhall Lettings,LA400,Sale Of Goods And Services,9230,Client Sessions May 2016,20/06/2016,420091,-16.00,NET,Gloucestershire Music Makers,13755L
Gloucester City Council,23UE,Nms Contract,HI102,Contracted Services,6970,JUN16 service fee,20/06/2016,419765,"478,446.30",NET,Enterprise (Aol) Ltd,06695G
Gloucester City Council,23UE,Business Transformation & Tech,RT700,Internet Service Provider Fees,5429,Charges Jun - Jul 2016,21/06/2016,419166,80.00,NET,Virgin Media Payments Ltd,09376J
Gloucester City Council,23UE,Business Transformation & Tech,RT700,Internet Service Provider Fees,5429,Charges May - Jun 2016,21/06/2016,419224,122.96,NET,Virgin Media Business,01869B
Gloucester City Council,23UE,Council Streetcare Team,HI101,Maint Of Grounds - General,3030,Westgate Park repairs,21/06/2016,419628,150.00,NET,Greenfields Garden Services Ltd,48130G
Gloucester City Council,23UE,Democratic Services,RS100,Office Equipment <5000,5010,Engraved Nail Plates,21/06/2016,419138,70.00,NET,The Gloucester Cobbler,10005X
Gloucester City Council,23UE,REDACTED,REDACTED,REDACTED,REDACTED,REDACTED,21/06/2016,REDACTED,385.00,NET,REDACTED,REDACTED
Gloucester City Council,23UE,Development Management,PT200,Microfilming / Cd-Rom Storage,5330,archival storage,21/06/2016,420109,43.14,NET,Transmedia Technology Ltd,08635T
Gloucester City Council,23UE,REDACTED,REDACTED,REDACTED,REDACTED,REDACTED,21/06/2016,REDACTED,40.00,NET,REDACTED,REDACTED
Gloucester City Council,23UE,Docks Complex - Services,RB100,General Repair/Maint Buildings,3000,4TH FLOOR SINK WORKS,21/06/2016,419766,150.00,NET,Three Counties Drain Service,44033V
Gloucester City Council,23UE,REDACTED,REDACTED,REDACTED,REDACTED,REDACTED,21/06/2016,REDACTED,"5,557.50",NET,REDACTED,REDACTED
Gloucester City Council,23UE,REDACTED,REDACTED,REDACTED,REDACTED,REDACTED,21/06/2016,REDACTED,"-1,091.50",NET,REDACTED,REDACTED
Gloucester City Council,23UE,Land Searches,RO300,Fees For Services Received,5350,land charges Q4 2015/16,21/06/2016,420110,"2,000.00",NET,Gloucestershire County Council,18650D
Gloucester City Council,23UE,S106 Hempsted Way Play Area,LY156,Contract Payments,0020,Hempsted Rec kissing gate path & fencing,21/06/2016,419631,"3,378.00",CAP,Greenfields Garden Services Ltd,48130G
Gloucester City Council,23UE,Asset Management,RS300,Basic Pay - Temporary Staff,2751,MAY16 project engineer services,22/06/2016,420142,"5,738.05",NET,Ecostep Ltd,15511Z
Gloucester City Council,23UE,Cemeteries,HC300,Routine R And M - Vehicles,4011,Fender & lubrication fitting,22/06/2016,420144,102.82,NET,Frank Sutton Ltd - Agric'L Engineer,42875D
Gloucester City Council,23UE,Civica Contract Revs & Bens,RT250,Contracted Services,6970,MAY16 pension excess charge,22/06/2016,420148,"10,971.54",NET,Civica Uk Ltd,10841X
Gloucester City Council,23UE,Civica It Contract,RT270,Computer Software Maintenance,5427,IT managed service JUL16,22/06/2016,419303,"48,061.14",NET,Civica Uk Ltd,10841X
Gloucester City Council,23UE,Civica It Contract,RT270,Contracted Services,6970,MAY16 pension excess charge,22/06/2016,420147,796.05,NET,Civica Uk Ltd,10841X
Gloucester City Council,23UE,Client Revs & Bens Contract,RT240,Bailiffs Fees,5368,MAY16 Dukes Direct recharge,22/06/2016,420149,"2,780.08",NET,Civica Uk Ltd,10841X
Gloucester City Council,23UE,Client Revs & Bens Contract,RT240,Bailiffs Fees,5368,VAT ONLY INVOICE,22/06/2016,420133,0.00,NET,Bristow & Sutor,05450M
Gloucester City Council,23UE,Contact Centre,RB300,Operational Equipment <5000,5012,recover 9 chairs,22/06/2016,420145,405.00,NET,The Furniture Recycling Project,05542F
Gloucester City Council,23UE,Contact Centre,RB300,Operational Equipment <5000,5012,work re reception desk,22/06/2016,420146,100.00,NET,The Furniture Recycling Project,05542F
Gloucester City Council,23UE,Development Management,PT200,Advertising And Publicity,5702,adverts 16/6/16,22/06/2016,420152,292.16,NET,Local World Ltd,08556P
Gloucester City Council,23UE,Docks Complex - Telephones,RB120,Mobile Phones,5409,Line Rental Charges,22/06/2016,419991,"1,364.16",NET,O2 Uk,16206Y
Gloucester City Council,23UE,Economic Development,FP300,Business Grant,7116,Grant,22/06/2016,420161,"3,000.00",NET,Stream Networks,16134Y
Gloucester City Council,23UE,General Works Fund,RY203,Consultants Fees,0030,CAD services MAY16,22/06/2016,419787,570.00,CAP,Graham Parker Environmental Design Solutions,16390B
Gloucester City Council,23UE,Guildhall Events,LA200,Advertising And Publicity,5702,weddings 2016/17 advert campaign,22/06/2016,419771,"2,150.00",NET,Soglos,07953J
Gloucester City Council,23UE,REDACTED,REDACTED,REDACTED,REDACTED,REDACTED,22/06/2016,REDACTED,220.00,NET,REDACTED,REDACTED
Gloucester City Council,23UE,Hackney Carriages,HL100,Fees For Services Received,5350,April 2016,22/06/2016,418694,440.00,NET,Disclosure And Barring Service,00119W
Gloucester City Council,23UE,Homelessness,CH120,Fees For Services Received,5350,telephone interpreting,22/06/2016,419643,39.90,NET,Prime Production Ltd,06262F
Gloucester City Council,23UE,Homelessness,CH120,Fees For Services Received,5350,telephone interpreting,22/06/2016,419644,11.55,NET,Prime Production Ltd,06262F
Gloucester City Council,23UE,Inhouse Training,EH200,Vocational Training,2970,FAW course 9&10 MAY 2016,22/06/2016,420136,420.00,NET,Aspire Sports & Cultural Trust,08135V
Gloucester City Council,23UE,Internal Audit,RT300,Fees For Services Received,5350,Internal Audit service,22/06/2016,420129,"20,840.00",NET,Gloucestershire County Council,18650D
Gloucester City Council,23UE,Internal Health & Safety,EH110,Other Minor Supplies Services,5590,MAY-JUL16 membership,22/06/2016,420138,91.25,NET,Gloucester City Safe,14709J
Gloucester City Council,23UE,Safe At Home Grants,CY012,Other Capital Grants,0089,WARM & WELL SLA,22/06/2016,419772,"5,000.00",CAP,Severn Wye Energy Agency Ltd,56930P
Gloucester City Council,23UE,Tic Theatre Ticket Sales,LT107,Materials For Sale,5080,ticket sales 'Pride in the Shirt',22/06/2016,420159,3.00,NET,Gloucester Civic Trust (St Michaels Tower),07484Z
Gloucester City Council,23UE,Tic Theatre Ticket Sales,LT107,Materials For Sale,5080,tower talks throughout 2016,22/06/2016,420160,23.50,NET,Gloucester Civic Trust (St Michaels Tower),07484Z
Gloucester City Council,23UE,Tic Theatre Ticket Sales,LT107,Other Minor Income,9900,ticket sales 'Pride in the Shirt',22/06/2016,420159,-0.05,NET,Gloucester Civic Trust (St Michaels Tower),07484Z
Gloucester City Council,23UE,Tic Theatre Ticket Sales,LT107,Sale Of Goods And Services,9230,ticket sales 'Pride in the Shirt',22/06/2016,420159,-0.12,NET,Gloucester Civic Trust (St Michaels Tower),07484Z
Gloucester City Council,23UE,Tic Theatre Ticket Sales,LT107,Sale Of Goods And Services,9230,tower talks throughout 2016,22/06/2016,420160,-5.42,NET,Gloucester Civic Trust (St Michaels Tower),07484Z
Gloucester City Council,23UE,Tourism Marketing,LT100,Rents,3200,rent for quarter 24/6/16,22/06/2016,419716,"5,725.00",NET,P W Fido & Associates,01210A
Gloucester City Council,23UE,Vehicles,RS140,Routine R And M - Vehicles,4011,vehicle service VE08OUG,22/06/2016,420134,"1,270.27",NET,Blade Motor Company,13671U
Gloucester City Council,23UE,Cemeteries,HC300,Fuel,4012,Gasoil (class A2),23/06/2016,420151,840.50,NET,Cpl Petroleum,55192U
Gloucester City Council,23UE,Cemeteries,HC300,Maint Of Grounds - General,3030,8x4 12mm plywood,23/06/2016,420184,404.00,NET,Millington & Ramstedt Ltd,29815S
Gloucester City Council,23UE,Cemeteries,HC300,Maint Of Grounds - General,3030,dutch hoe blade,23/06/2016,420140,74.61,NET,Spaldings,48759Y
Gloucester City Council,23UE,Cemeteries,HC300,Maint Of Grounds - General,3030,tree work near Arbor,23/06/2016,420207,175.00,NET,Jpu Services Ltd,11056K
Gloucester City Council,23UE,City Museum And Art Gallery,LM200,Printing,5300,Museum Golden Tickets,23/06/2016,420186,"1,386.00",NET,Alpha Colour Printers Ltd,00945B
Gloucester City Council,23UE,Contact Centre,RB300,Postages,5400,DL 2nd class envelopes,23/06/2016,420187,241.36,NET,Encore Envelopes Ltd,13782H
Gloucester City Council,23UE,Contact Centre,RB300,Stationery,5302,DATER 'RECEIVED' STAMP,23/06/2016,420201,9.33,NET,Lyreco Uk Ltd,11746G
Gloucester City Council,23UE,Contact Centre,RB300,Stationery,5302,FLIPCHART PADS,23/06/2016,420198,7.92,NET,Lyreco Uk Ltd,11746G
Gloucester City Council,23UE,Contact Centre,RB300,Stationery,5302,ivory paper,23/06/2016,420190,114.00,NET,Premier Paper Group Ltd,09166Y
Gloucester City Council,23UE,Contact Centre,RB300,Stationery,5302,RECEIVED STAMP WITH DATE,23/06/2016,420200,9.33,NET,Lyreco Uk Ltd,11746G
Gloucester City Council,23UE,Contact Centre,RB300,Stationery,5302,STATIONERY,23/06/2016,420199,27.28,NET,Lyreco Uk Ltd,11746G
Gloucester City Council,23UE,Council Streetcare Team,HI101,Maint Of Grounds - General,3030,contribution to planting,23/06/2016,420191,"2,716.67",NET,Gloucester Cathedral,03781D
Gloucester City Council,23UE,Crematorium,HC200,Cleaning Materials,3600,towel hire JUL-SEP16,23/06/2016,420192,30.79,NET,Initial Washroom Solutions,24219P
Gloucester City Council,23UE,Crematorium,HC200,Operational Equipment <5000,5012,tools,23/06/2016,420141,34.26,NET,Spaldings,48759Y
Gloucester City Council,23UE,Food Safety,HE100,Vocational Training,2970,POCA TRAINING 14/6/16,23/06/2016,420205,90.00,NET,Cotswold District Council,49331J
Gloucester City Council,23UE,Grants To Voluntary Sector,FG100,Abcd Grants,7100A,Oval Big Launch bouncy castle,23/06/2016,420209,60.00,NET,Anytime Castles & Sunbeds Ltd,55955G
Gloucester City Council,23UE,Guildhall Bar And Caf�,LA210,Hire Of Equipment,5020,CATERING EQUIPMENT,23/06/2016,420204,202.78,NET,Nisbets,55372P
Gloucester City Council,23UE,Guildhall Events,LA200,Fees For Services Received,5350,REDACTED,23/06/2016,420208,54.16,NET,Edward Hotel,00141D
Gloucester City Council,23UE,Kings Quarter,RY146,Contract Payments,0020,Bus Station Stopping Up order,23/06/2016,420143,"2,700.00",CAP,Gva Grimley,56359W
Gloucester City Council,23UE,Kings Quarter,RY146,Contract Payments,0020,Gloucester Transport Hub works,23/06/2016,419807,"5,000.00",CAP,Gloucestershire County Council,18650D
Gloucester City Council,23UE,Legal Services,RS200,Contracted Services,6970,q4 one legal charges,23/06/2016,418574,"85,920.39",NET,Tewkesbury Borough Council,43800C
Gloucester City Council,23UE,Off Street Car Parks,PP110,Rents,3200,car park rent JUN-SEP16,23/06/2016,419670,600.00,NET,Boots The Chemist,04540V
Gloucester City Council,23UE,Off Street Car Parks,PP110,Rents,3200,Kings Sq car park rent JUN-SEP16,23/06/2016,420182,"46,250.00",NET,Colliers International,15540S
Gloucester City Council,23UE,Pest Control,HD400,Fees For Services Received,5350,PIGEON/GULL CONTROL,23/06/2016,419730,"6,669.00",NET,Mitie Pest Control Ltd,15737U
Gloucester City Council,23UE,Pollution Control,HE300,Fees For Services Received,5350,NO2 tubes,23/06/2016,420197,104.25,NET,Gradko International Ltd,11063B
Gloucester City Council,23UE,Public Health,HD200,Other Minor Supplies Services,5590,Kingsway builder APR-JN16,23/06/2016,420243,"6,304.69",NET,Gl Communities,09535X
Gloucester City Council,23UE,REDACTED,REDACTED,REDACTED,REDACTED,REDACTED,23/06/2016,REDACTED,157.50,CAP,REDACTED,REDACTED
Gloucester City Council,23UE,Safe At Home Grants,CY012,Disabled Facility Grants,0074,COMMUNITY EQUIPMENT SERVICES,23/06/2016,420132,"8,000.00",CAP,Gloucestershire County Council,18650D
Gloucester City Council,23UE,Safer Stronger Communities,FP841,Other Minor Supplies Services,5590,display stand,23/06/2016,420206,297.00,NET,Squirty Ink,13834P
Gloucester City Council,23UE,Solace Project,FP843,Other Minor Supplies Services,5590,APR16 ASB SALARY,23/06/2016,419762,"3,250.00",NET,Gloucester City Homes,05244T
Gloucester City Council,23UE,Solace Project,FP843,Other Minor Supplies Services,5590,MAY16 ASB salary,23/06/2016,419763,"3,250.00",NET,Gloucester City Homes,05244T
Gloucester City Council,23UE,The Arbor,HC501,Catering Provisions -Food,5110,food,23/06/2016,419347,86.66,NET,Charles Saunders Food Service,16467R
Gloucester City Council,23UE,Tic Trading,LT110,Materials For Sale,5080,goods for resale,23/06/2016,420139,190.56,NET,New English Teas Ltd,00118Y
Gloucester City Council,23UE,Tourism Marketing,LT100,Window Cleaning,3610,window cleaning 25/4 & 2/5/16,23/06/2016,420193,12.00,NET,Interserve Fs (Uk) Limited,00442K
Gloucester City Council,23UE,16 Commercial Road,RB539,General Repair/Maint Buildings,3000,CDM fees re 16 Commercial Rd,24/06/2016,420217,300.00,NET,Goddard Consulting Llp,10598G
Gloucester City Council,23UE,Blackfriars,LA609,Cleaning Materials,3600,HAND DRYER BIOLITE RENTAL MAR-JUN16,24/06/2016,420316,52.65,NET,Wessex Products (Leasing) Ltd,03684C
Gloucester City Council,23UE,Cemeteries,HC300,Basic Pay - Temporary Staff,2751,temp staff w/e 12/6/16,24/06/2016,420226,439.88,NET,Premiere Employment Group Ltd,55468Z
Gloucester City Council,23UE,Cemeteries,HC300,Basic Pay - Temporary Staff,2751,temp staff  w/e 5/6/16,24/06/2016,420273,351.90,NET,Premiere Employment Group Ltd,55468Z
Gloucester City Council,23UE,Cemeteries,HC300,Basic Pay - Temporary Staff,2751,temp staff  w/e 12/6/16,24/06/2016,420225,439.88,NET,Premiere Employment Group Ltd,55468Z
Gloucester City Council,23UE,Cemeteries,HC300,Basic Pay - Temporary Staff,2751,temp staff w/e 5/6/16,24/06/2016,420274,351.90,NET,Premiere Employment Group Ltd,55468Z
Gloucester City Council,23UE,Cemeteries,HC300,Clothing,5200,workwear,24/06/2016,420212,22.05,NET,Safpro Industrial Supply Co,39190W
Gloucester City Council,23UE,Cemeteries,HC300,Major R And M - Vehicles,4010,strimmer service,24/06/2016,420258,129.94,NET,Garden Machinery Gloucester,55641K
Gloucester City Council,23UE,Cemeteries,HC300,Routine R And M - Vehicles,4011,replacement battery,24/06/2016,420257,91.95,NET,Garden Machinery Gloucester,55641K
Gloucester City Council,23UE,Cemeteries,HC300,Routine R And M - Vehicles,4011,strimmer service,24/06/2016,420259,22.19,NET,Garden Machinery Gloucester,55641K
Gloucester City Council,23UE,Cemeteries,HC300,Routine R And M - Vehicles,4011,strimmer service,24/06/2016,420260,40.41,NET,Garden Machinery Gloucester,55641K
Gloucester City Council,23UE,City Museum And Art Gallery,LM200,Exhibits And Collections,5038,Robot exhibition hire,24/06/2016,420288,"6,400.00",NET,Ideas,16137S
Gloucester City Council,23UE,City Museum And Art Gallery,LM200,Publications For Sale,5064,goods for resale,24/06/2016,420271,285.50,NET,House Of Marbles,04546G
Gloucester City Council,23UE,Contact Centre,RB300,Postages,5400,C5 2nd class envelopes,24/06/2016,420279,141.66,NET,Encore Envelopes Ltd,13782H
Gloucester City Council,23UE,Contact Centre,RB300,Postages,5400,DL 1st class envelopes,24/06/2016,420280,110.50,NET,Encore Envelopes Ltd,13782H
Gloucester City Council,23UE,Council Streetcare Team,HI101,Maint Of Grounds - General,3030,Streetmaster Pro,24/06/2016,420272,237.50,NET,The Helping Hand Company,08066N
Gloucester City Council,23UE,Council Streetcare Team,HI101,Maint Of Grounds - General,3030,Tuffley Park gate repair,24/06/2016,420210,105.00,NET,Greenfields Garden Services Ltd,48130G
Gloucester City Council,23UE,Crematorium,HC200,Memorial Plaques,5053,bronze plaque,24/06/2016,420289,54.00,NET,Arkell & Hurcombe,59812T
Gloucester City Council,23UE,Crematorium,HC200,Memorial Plaques,5053,bronze plaques,24/06/2016,420290,504.00,NET,Arkell & Hurcombe,59812T
Gloucester City Council,23UE,Crematorium,HC200,National Assist Act Burial Exp,5593,professional charges re funeral,24/06/2016,420237,614.00,NET,Selim Smith & Co Funeral Directors,15156X
Gloucester City Council,23UE,Crematorium,HC200,Repair/Maint Of Fixed Plant,3006,8Gb Kingston DataTraveler USB Key,24/06/2016,420239,122.50,NET,Revolution Multimedia,07880L
Gloucester City Council,23UE,Crematorium,HC200,Repair/Maint Of Fixed Plant,3006,supply and fit panels,24/06/2016,420275,100.84,NET,Interior Needs,12578U
Gloucester City Council,23UE,Docks Complex - Catering Servs,RB110,Sale Of Council Products,9220,Buffets,24/06/2016,420284,162.40,NET,Janes Pantry,24500W
Gloucester City Council,23UE,Docks Complex - Catering Servs,RB110,Sale Of Council Products,9220,food,24/06/2016,420220,60.48,NET,Janes Pantry,24500W
Gloucester City Council,23UE,REDACTED,REDACTED,REDACTED,REDACTED,REDACTED,24/06/2016,REDACTED,40.00,NET,REDACTED,REDACTED
Gloucester City Council,23UE,Economic Development,FP300,Other Minor Supplies Services,5590,CR2016/PO1 data extracts,24/06/2016,420230,"2,000.00",NET,Civica Uk Ltd,10841X
Gloucester City Council,23UE,Food Safety,HE100,Other Minor Supplies Services,5590,probe wipes,24/06/2016,420218,18.50,NET,Electronic Temperature Instruments Ltd,04785K
Gloucester City Council,23UE,Gloucester Guildhall,LA100,Fees For Services Received,5350,Gloucester Breakdance event,24/06/2016,420351,250.00,NET,Connect Electrical Contracting,12405D
Gloucester City Council,23UE,Gloucester Guildhall,LA100,Training Course Fees,5367,Train the Trainer ,24/06/2016,420352,166.50,NET,Gloucestershire Enterprise Ltd,18643A
Gloucester City Council,23UE,Gloucester Guildhall,LA100,Training Course Fees,5367,Train the Trainer ,24/06/2016,420354,166.50,NET,Gloucestershire Enterprise Ltd,18643A
Gloucester City Council,23UE,Gloucester Guildhall,LA100,Training Course Fees,5367,Train the Trainer ,24/06/2016,420353,166.50,NET,Gloucestershire Enterprise Ltd,18643A
Gloucester City Council,23UE,Guildhall Bar And Caf�,LA210,Catering Provisions -Food,5110,Brazilian coffee,24/06/2016,420283,8.80,NET,Ethical Addictions Ltd,11654N
Gloucester City Council,23UE,Guildhall Bar And Caf�,LA210,Catering Provisions -Liquor,5111,drinks,24/06/2016,420277,740.78,NET,Cellar Supplies Cheltenham Ltd,01563L
Gloucester City Council,23UE,Guildhall Bar And Caf�,LA210,Catering Provisions -Liquor,5111,drinks,24/06/2016,420278,791.36,NET,Cellar Supplies Cheltenham Ltd,01563L
Gloucester City Council,23UE,Guildhall Bar And Caf�,LA210,Catering Provisions -Liquor,5111,drinks,24/06/2016,420281,59.95,NET,Cellar Supplies Cheltenham Ltd,01563L
Gloucester City Council,23UE,Guildhall Bar And Caf�,LA210,Catering Provisions -Liquor,5111,Gloucester Gold,24/06/2016,420282,114.00,NET,Gloucester Brewery,13373F
Gloucester City Council,23UE,Guildhall Bar And Caf�,LA210,Hire Of Equipment,5020,stock audit May 2016,24/06/2016,420219,90.00,NET,Fea Audits,08888J
Gloucester City Council,23UE,REDACTED,REDACTED,REDACTED,REDACTED,REDACTED,24/06/2016,REDACTED,220.00,NET,REDACTED,REDACTED
Gloucester City Council,23UE,Homelessness,CH120,Fees For Services Received,5350,HOMELESS SERVICE,24/06/2016,420318,64.28,NET,Orbis Protect Limited*,56370J
Gloucester City Council,23UE,Homelessness,CH120,Removal And Storage Fees,5513,medical report,24/06/2016,420251,20.50,NET,Saintbridge Surgery,58374F
Gloucester City Council,23UE,Homelessness,CH120,Removal And Storage Fees,5513,storage fees,24/06/2016,420249,97.71,NET,Advanced Removals & Storage Ltd,57142R
Gloucester City Council,23UE,Homelessness,CH120,Removal And Storage Fees,5513,storage fees,24/06/2016,420250,191.25,NET,Advanced Removals & Storage Ltd,57142R
Gloucester City Council,23UE,Homelessness,CH120,Removal And Storage Fees,5513,storage fees,24/06/2016,420252,39.11,NET,Advanced Removals & Storage Ltd,57142R
Gloucester City Council,23UE,Homelessness,CH120,Removal And Storage Fees,5513,storage fees,24/06/2016,420253,16.71,NET,Advanced Removals & Storage Ltd,57142R
Gloucester City Council,23UE,Homelessness,CH120,Removal And Storage Fees,5513,storage fees,24/06/2016,420254,556.88,NET,Advanced Removals & Storage Ltd,57142R
Gloucester City Council,23UE,Homelessness,CH120,Removal And Storage Fees,5513,storage fees,24/06/2016,420255,78.21,NET,Advanced Removals & Storage Ltd,57142R
Gloucester City Council,23UE,Homelessness,CH120,Removal And Storage Fees,5513,storage fees,24/06/2016,420256,78.21,NET,Advanced Removals & Storage Ltd,57142R
Gloucester City Council,23UE,Homelessness,CH120,Removal And Storage Fees,5513,storage fees,24/06/2016,420261,78.21,NET,Advanced Removals & Storage Ltd,57142R
Gloucester City Council,23UE,Homelessness,CH120,Removal And Storage Fees,5513,storage fees,24/06/2016,420262,78.21,NET,Advanced Removals & Storage Ltd,57142R
Gloucester City Council,23UE,Homelessness,CH120,Removal And Storage Fees,5513,storage fees,24/06/2016,420263,39.11,NET,Advanced Removals & Storage Ltd,57142R
Gloucester City Council,23UE,Homelessness,CH120,Removal And Storage Fees,5513,storage fees,24/06/2016,420264,39.11,NET,Advanced Removals & Storage Ltd,57142R
Gloucester City Council,23UE,Homelessness,CH120,Removal And Storage Fees,5513,storage fees,24/06/2016,420265,10.29,NET,Advanced Removals & Storage Ltd,57142R
Gloucester City Council,23UE,Homelessness,CH120,Removal And Storage Fees,5513,storage fees,24/06/2016,420266,59.14,NET,Advanced Removals & Storage Ltd,57142R
Gloucester City Council,23UE,Homelessness Prevention,CH122,Fees For Services Received,5350,medical reports,24/06/2016,420236,85.00,NET,Now Medical,03468L
Gloucester City Council,23UE,Homelessness Prevention,CH122,Grants To Advice Centres,7100,CORE FUNDING 1/4/16 - 30/9/16,24/06/2016,420317,"3,500.00",NET,Gloucestershire Nightstop,56573S
Gloucester City Council,23UE,Investment Property,RB500,General Repair/Maint Buildings,3000,MTC works MAY16,24/06/2016,420319,"12,039.66",NET,Rf Gardiner Limited,12299B
Gloucester City Council,23UE,REDACTED,REDACTED,REDACTED,REDACTED,REDACTED,24/06/2016,REDACTED,80.00,NET,REDACTED,REDACTED
Gloucester City Council,23UE,Members Support,RC300,Members Training,5535,member training 16/6/16,24/06/2016,420216,"1,028.20",NET,Nelson Training Ltd,58055B
Gloucester City Council,23UE,Parks Contract Management,LP100,Maint Of Grounds - General,3030,Matson Park play area swing repairs,24/06/2016,420222,160.00,NET,Greenfields Garden Services Ltd,48130G
Gloucester City Council,23UE,Parks Contract Management,LP100,Maint Of Grounds - General,3030,parts,24/06/2016,420360,34.92,NET,Sutcliffe Play (Southwest) Ltd,02238S
Gloucester City Council,23UE,Rehousing,CH111,Fees For Services Received,5350,medical report,24/06/2016,420248,20.50,NET,Bartongate Surgery,05680S
Gloucester City Council,23UE,Rehousing,CH111,Fees For Services Received,5350,medical reports,24/06/2016,420236,150.00,NET,Now Medical,03468L
Gloucester City Council,23UE,Superbreak,LT104,Materials For Sale,5080,booking 15/6/16,24/06/2016,420221,149.00,NET,Superbreak Mini Holidays,00712D
Gloucester City Council,23UE,Superbreak,LT104,Sale Of Goods And Services,9230,booking 5/6/16,24/06/2016,420221,-12.41,NET,Superbreak Mini Holidays,00712D
Gloucester City Council,23UE,The Arbor,HC501,Catering Provisions -Food,5110,food,24/06/2016,420224,28.28,NET,Total Produce Gloucester,12645E
Gloucester City Council,23UE,The Arbor,HC501,Catering Provisions -Food,5110,food,24/06/2016,420227,114.50,NET,Bidvest Foodservice (3663),55585U
Gloucester City Council,23UE,The Arbor,HC501,Catering Provisions -Food,5110,food,24/06/2016,420228,187.20,NET,Bidvest Foodservice (3663),55585U
Gloucester City Council,23UE,The Arbor,HC501,Catering Provisions -Food,5110,food,24/06/2016,420229,345.52,NET,Bidvest Foodservice (3663),55585U
Gloucester City Council,23UE,The Arbor,HC501,Catering Provisions -Food,5110,food,24/06/2016,420245,330.32,NET,Bidvest Foodservice (3663),55585U
Gloucester City Council,23UE,The Arbor,HC501,Catering Provisions -Food,5110,food,24/06/2016,420291,11.83,NET,Total Produce Gloucester,12645E
Gloucester City Council,23UE,The Arbor,HC501,Catering Provisions -Food,5110,food,24/06/2016,420292,64.52,NET,Total Produce Gloucester,12645E
Gloucester City Council,23UE,The Arbor,HC501,Catering Provisions -Food,5110,food,24/06/2016,420293,68.06,NET,Total Produce Gloucester,12645E
Gloucester City Council,23UE,The Arbor,HC501,Catering Provisions -Food,5110,food,24/06/2016,420295,36.74,NET,Total Produce Gloucester,12645E
Gloucester City Council,23UE,The Arbor,HC501,Catering Provisions -Food,5110,food,24/06/2016,420296,23.34,NET,Total Produce Gloucester,12645E
Gloucester City Council,23UE,The Arbor,HC501,Catering Provisions -Food,5110,food,24/06/2016,420297,65.46,NET,Total Produce Gloucester,12645E
Gloucester City Council,23UE,The Arbor,HC501,Catering Provisions -Food,5110,food,24/06/2016,420298,42.41,NET,Total Produce Gloucester,12645E
Gloucester City Council,23UE,The Arbor,HC501,Catering Provisions -Food,5110,food,24/06/2016,420299,16.21,NET,Total Produce Gloucester,12645E
Gloucester City Council,23UE,The Arbor,HC501,Catering Provisions -Food,5110,food,24/06/2016,420300,91.34,NET,Total Produce Gloucester,12645E
Gloucester City Council,23UE,The Arbor,HC501,Catering Provisions -Food,5110,food,24/06/2016,420301,27.18,NET,Total Produce Gloucester,12645E
Gloucester City Council,23UE,The Arbor,HC501,Catering Provisions -Food,5110,food,24/06/2016,420302,22.39,NET,Total Produce Gloucester,12645E
Gloucester City Council,23UE,The Arbor,HC501,Catering Provisions -Food,5110,food,24/06/2016,420303,49.56,NET,Total Produce Gloucester,12645E
Gloucester City Council,23UE,The Arbor,HC501,Catering Provisions -Food,5110,food,24/06/2016,420304,15.95,NET,Total Produce Gloucester,12645E
Gloucester City Council,23UE,The Arbor,HC501,Catering Provisions -Food,5110,food,24/06/2016,420305,49.43,NET,Total Produce Gloucester,12645E
Gloucester City Council,23UE,The Arbor,HC501,Catering Provisions -Food,5110,food,24/06/2016,420306,50.03,NET,Total Produce Gloucester,12645E
Gloucester City Council,23UE,The Arbor,HC501,Catering Provisions -Food,5110,food,24/06/2016,420307,21.56,NET,Total Produce Gloucester,12645E
Gloucester City Council,23UE,The Arbor,HC501,Catering Provisions -Food,5110,food,24/06/2016,420311,71.01,NET,Charles Saunders Food Service,16467R
Gloucester City Council,23UE,The Arbor,HC501,Catering Provisions -Food,5110,food,24/06/2016,420312,32.94,NET,Charles Saunders Food Service,16467R
Gloucester City Council,23UE,The Arbor,HC501,Catering Provisions -Liquor,5111,drinks,24/06/2016,420286,121.53,NET,Cellar Supplies Cheltenham Ltd,01563L
Gloucester City Council,23UE,The Arbor,HC501,Catering Provisions -Liquor,5111,drinks,24/06/2016,420287,209.82,NET,Cellar Supplies Cheltenham Ltd,01563L
Gloucester City Council,23UE,The Arbor,HC501,Cleaning Materials,3600,sanitary disposal unit,24/06/2016,420309,17.28,NET,Minster Cleaning Services,02158R
Gloucester City Council,23UE,The Arbor,HC501,General Repair/Maint Buildings,3000,repair Audio Amp in Wake room,24/06/2016,420223,60.00,NET,Revolution Multimedia,07880L
Gloucester City Council,23UE,The Arbor,HC501,Operational Equipment <5000,5012,Mulberry Room curtains,24/06/2016,420276,"2,816.67",NET,Interior Needs,12578U
Gloucester City Council,23UE,Tic Rovercard Sales,LT101,Materials For Sale,5080,tickets sold on commission,24/06/2016,420308,"2,070.70",NET,Stagecoach Services Ltd,56554W
Gloucester City Council,23UE,Tic Rovercard Sales,LT101,Sale Of Goods And Services,9230,tickets sold on commission,24/06/2016,420308,-172.56,NET,Stagecoach Services Ltd,56554W
Gloucester City Council,23UE,Tourism Marketing,LT100,Uniforms,5201,black PC shirts,24/06/2016,420246,50.97,NET,Simon Jersey Ltd,40555W
Gloucester City Council,23UE,Cemeteries,HC300,Clothing,5200,workwear,27/06/2016,420215,184.77,NET,Safpro Industrial Supply Co,39190W
Gloucester City Council,23UE,City Museum And Art Gallery,LM200,Publications For Sale,5064,goods for resale,27/06/2016,420150,"2,998.78",NET,British Fossils,53280R
Gloucester City Council,23UE,Council Streetcare Team,HI101,Other Minor Supplies Services,5590,barrier tape,27/06/2016,420214,19.54,NET,Safpro Industrial Supply Co,39190W
Gloucester City Council,23UE,Countryside Unit,LP201,Maint Of Grounds - General,3030,recycled plastic wood,27/06/2016,420313,30.79,NET,Fitzpatrick Woolmer Design & Publishing Ltd,04091D
Gloucester City Council,23UE,Development Management,PT200,Basic Pay - Temporary Staff,2751,temp staff w/c 6/6/16,27/06/2016,420267,"1,440.00",NET,The Oyster Partnership Limited,14900T
Gloucester City Council,23UE,Development Management,PT200,Basic Pay - Temporary Staff,2751,temp staff w/e 5/6/16,27/06/2016,420188,"1,221.40",NET,The Oyster Partnership Limited,14900T
Gloucester City Council,23UE,Dog Warden,HE400,Fees For Services Received,5350,APR16 dog warden service,27/06/2016,420241,"3,054.43",NET,Bromsgrove District Council,15754U
Gloucester City Council,23UE,Grants To Voluntary Sector,FG100,Members Allocation Fund,7100F,grant payment,27/06/2016,420424,500.00,NET,Hucclecote Surgery Patientparticipation Group,16501T
Gloucester City Council,23UE,REDACTED,REDACTED,REDACTED,REDACTED,REDACTED,27/06/2016,REDACTED,150.00,NET,REDACTED,REDACTED
Gloucester City Council,23UE,REDACTED,REDACTED,REDACTED,REDACTED,REDACTED,27/06/2016,REDACTED,139.00,NET,REDACTED,REDACTED
Gloucester City Council,23UE,Homelessness,CH120,Board And Lodging,5515,B&B PAYMENTS,27/06/2016,420416,"3,766.50",NET,James Legge Property (Ltd),07844R
Gloucester City Council,23UE,Homelessness,CH120,Board And Lodging,5515,B&B PAYMENTS,27/06/2016,420417,"6,847.06",NET,REDACTED,REDACTED
Gloucester City Council,23UE,Homelessness,CH120,Board And Lodging,5515,B&B PAYMENTS,27/06/2016,420419,"3,094.24",NET,Dorchester Guest House,12298D
Gloucester City Council,23UE,Homelessness,CH120,Board And Lodging,5515,B&B PAYMENTS,27/06/2016,420420,"1,862.54",NET,Carbrey Housing Ltd,11098G
Gloucester City Council,23UE,Homelessness,CH120,Board And Lodging,5515,B&B PAYMENTS,27/06/2016,420421,"1,442.34",NET,Kalmwood Ltd,08568G
Gloucester City Council,23UE,REDACTED,REDACTED,REDACTED,REDACTED,REDACTED,27/06/2016,REDACTED,"2,549.76",NET,REDACTED,REDACTED
Gloucester City Council,23UE,REDACTED,REDACTED,REDACTED,REDACTED,REDACTED,27/06/2016,REDACTED,393.20,NET,REDACTED,REDACTED
Gloucester City Council,23UE,REDACTED,REDACTED,REDACTED,REDACTED,REDACTED,27/06/2016,REDACTED,"5,968.25",NET,REDACTED,REDACTED
Gloucester City Council,23UE,REDACTED,REDACTED,REDACTED,REDACTED,REDACTED,27/06/2016,REDACTED,650.00,NET,REDACTED,REDACTED
Gloucester City Council,23UE,Investment Property,RB500,General Repair/Maint Buildings,3000,install twin head pump,27/06/2016,420415,"2,865.00",NET,M & E Maintenance Solutions Ltd,16463Z
Gloucester City Council,23UE,Planning Policy & Heritage,PT300,Basic Pay - Temporary Staff,2751,temporary staff w/c 6/6/16,27/06/2016,420294,"2,262.00",NET,The Oyster Partnership Limited,14900T
Gloucester City Council,23UE,Planning Policy & Heritage,PT300,Basic Pay - Temporary Staff,2751,temp staff w/e 5/6/16,27/06/2016,420189,"1,856.00",NET,The Oyster Partnership Limited,14900T
Gloucester City Council,23UE,Client Revs & Bens Contract,RT240,Bailiffs Fees,5368,VAT only invoice,28/06/2016,420363,0.00,NET,Phoenix Commercial Collections Ltd,13435J
Gloucester City Council,23UE,Client Revs & Bens Contract,RT240,Bailiffs Fees,5368,VAT only invoice,28/06/2016,420364,0.00,NET,Phoenix Commercial Collections Ltd,13435J
Gloucester City Council,23UE,REDACTED,REDACTED,REDACTED,REDACTED,REDACTED,28/06/2016,REDACTED,245.00,NET,REDACTED,REDACTED
Gloucester City Council,23UE,Contaminated Land,HE301,Fees For Services Received,5350,APR16 contaminated land work,28/06/2016,420232,"1,267.84",NET,Bromsgrove District Council,15037G
Gloucester City Council,23UE,Council Streetcare Team,HI101,Signs / Nameplates,3039,street nameplates,28/06/2016,420369,241.92,NET,Enterprise (Aol) Ltd,06695G
Gloucester City Council,23UE,Economic Development,FP300,Business Grant,7116,broadband voucher re invoice 28144,28/06/2016,420557,"3,000.00",NET,Nomis Connections Ltd,15813D
Gloucester City Council,23UE,Economic Development,FP300,Business Grant,7116,broadband voucher re invoie 10565,28/06/2016,420556,"3,000.00",NET,Eurolink Connect Limited,15772S
Gloucester City Council,23UE,REDACTED,REDACTED,REDACTED,REDACTED,REDACTED,28/06/2016,REDACTED,0.00,NET,REDACTED,REDACTED
Gloucester City Council,23UE,Flooding And Drainage,HE306,Maint Of Grounds - General,3030,vegetation works on waterways,28/06/2016,420213,900.00,NET,Rdb Safety Boat Ltd,13507J
Gloucester City Council,23UE,REDACTED,REDACTED,REDACTED,REDACTED,REDACTED,28/06/2016,REDACTED,191.40,NET,REDACTED,REDACTED
Gloucester City Council,23UE,REDACTED,REDACTED,REDACTED,REDACTED,REDACTED,28/06/2016,REDACTED,489.44,NET,REDACTED,REDACTED
Gloucester City Council,23UE,REDACTED,REDACTED,REDACTED,REDACTED,REDACTED,28/06/2016,REDACTED,530.00,NET,REDACTED,REDACTED
Gloucester City Council,23UE,Housing Works In Default,HD500,Clearance And Cleansing Fees,5384,Alma Place works,28/06/2016,420127,"1,550.00",NET,Rj Contracting (Environmental) Ltd,07429H
Gloucester City Council,23UE,Internal Health & Safety,EH110,Other Minor Supplies Services,5590,membership fees 2016/17,28/06/2016,420183,80.00,NET,Laeog,12040Y
Gloucester City Council,23UE,Off Street Car Parks,PP110,Rents,3200,Gt Western Rd car park rent JUN-SEP16,28/06/2016,420231,118.75,NET,Telereal Services Ltd,15121I
Gloucester City Council,23UE,Parks Contract Management,LP100,Maint Of Grounds - General,3030,play area spares,28/06/2016,420367,697.57,NET,Enterprise (Aol) Ltd,06695G
Gloucester City Council,23UE,Parks Contract Management,LP100,Maint Of Grounds - General,3030,Windfall Way PA,28/06/2016,420366,221.00,NET,Enterprise (Aol) Ltd,06695G
Gloucester City Council,23UE,Pest Control,HD400,Fees For Services Received,5350,feral bird removal GL1 4JR,28/06/2016,420361,650.00,NET,Mitie Pest Control Ltd,15737U
Gloucester City Council,23UE,Pollution Control,HE300,Fees For Services Received,5350,NO2 tubes,28/06/2016,420196,23.85,NET,Gradko International Ltd,11063B
Gloucester City Council,23UE,Allotments,HI104,Fees For Services Received,5350,PADLOCK,29/06/2016,420482,23.72,NET,Gloucester Locksmiths,18160C
Gloucester City Council,23UE,Cemeteries,HC300,Other Minor Supplies Services,5590,Fix Garden Signs,29/06/2016,420498,268.90,NET,Gloucester Street Forge,11069C
Gloucester City Council,23UE,City Museum And Art Gallery,LM200,Cleaning Materials,3600,cleaning materials,29/06/2016,419792,89.07,NET,Acs Business Supplies Ltd,15791M
Gloucester City Council,23UE,City Museum Catering,LM202,Catering Provisions -Food,5110,Fruit,29/06/2016,420535,48.93,NET,Woody'S Fruit & Veg,11798L
Gloucester City Council,23UE,Civica Admin Charges,RT105,Postages,5400,Post 31/05 - 17/06 2016,29/06/2016,420501,"1,315.99",NET,Royal Mail S.Wales & South West,35830S
Gloucester City Council,23UE,Contact Centre,RB300,Publications,5060,NEWSPAPERS,29/06/2016,420489,156.50,NET,Ymk Supermarket,55281U
Gloucester City Council,23UE,Crematorium,HC200,Cleaning Materials,3600,cleaning materials,29/06/2016,419792,91.42,NET,Acs Business Supplies Ltd,15791M
Gloucester City Council,23UE,Crematorium,HC200,"Seeds, Trees, Plants, Shrubs",3028,Roses supplied,29/06/2016,419980,160.90,NET,Genus Plant Sourcing,14143S
Gloucester City Council,23UE,Docks Complex - Services,RB100,Cleaning Materials,3600,cleaning materials,29/06/2016,419792,40.96,NET,Acs Business Supplies Ltd,15791M
Gloucester City Council,23UE,Docks Complex - Services,RB100,Fire Alarm Maintenance,3053,replacement alarm equipment,29/06/2016,420240,145.60,NET,Avon Alarms Ltd,02280T
Gloucester City Council,23UE,Docks Complex - Services,RB100,Hire Of Equipment,5020,Sanipod lease HKP JUL-OCT16,29/06/2016,420355,48.75,NET,Wessex Products (Leasing) Ltd,03684C
Gloucester City Council,23UE,Docks Complex - Services,RB100,Licences,5703,DOCKS PPL LICENCE,29/06/2016,420513,130.51,NET,Ppl,49860Z
Gloucester City Council,23UE,Financial Services,RT200,Basic Pay - Temporary Staff,2751,Temporary Staff w/e 03/06/2016,29/06/2016,420504,561.01,NET,Hays Specialist Recruitment Ltd,55516P
Gloucester City Council,23UE,Financial Services,RT200,Basic Pay - Temporary Staff,2751,Temporary Staff w/e 06/05/2016,29/06/2016,420508,279.14,NET,Hays Specialist Recruitment Ltd,55516P
Gloucester City Council,23UE,Financial Services,RT200,Basic Pay - Temporary Staff,2751,Temporary Staff w/e 10/06/2016,29/06/2016,420503,650.46,NET,Hays Specialist Recruitment Ltd,55516P
Gloucester City Council,23UE,Financial Services,RT200,Basic Pay - Temporary Staff,2751,Temporary Staff w/e 13/05/2016,29/06/2016,420507,607.55,NET,Hays Specialist Recruitment Ltd,55516P
Gloucester City Council,23UE,Financial Services,RT200,Basic Pay - Temporary Staff,2751,Temporary Staff w/e 20/05/2016,29/06/2016,420506,607.55,NET,Hays Specialist Recruitment Ltd,55516P
Gloucester City Council,23UE,Financial Services,RT200,Basic Pay - Temporary Staff,2751,Temporary Staff w/e 27/05/2016,29/06/2016,420505,525.44,NET,Hays Specialist Recruitment Ltd,55516P
Gloucester City Council,23UE,Financial Services,RT200,Basic Pay - Temporary Staff,2751,Temporary Staff w/e 29/04/2016,29/06/2016,420509,607.55,NET,Hays Specialist Recruitment Ltd,55516P
Gloucester City Council,23UE,Gloucester Guildhall,LA100,Cleaning Materials,3600,cleaning materials,29/06/2016,419792,206.70,NET,Acs Business Supplies Ltd,15791M
Gloucester City Council,23UE,Grants To Voluntary Sector,FG100,Abcd Grants,7100A,Blulight training,29/06/2016,420576,"2,080.00",NET,"Police & Crime Commissioner, Gloucestershire",49521B
Gloucester City Council,23UE,Grants To Voluntary Sector,FG100,Abcd Grants,7100A,community engagement training 16-17,29/06/2016,420578,"2,080.00",NET,"Police & Crime Commissioner, Gloucestershire",49521B
Gloucester City Council,23UE,Guildhall Bar And Caf�,LA210,Catering Provisions -Food,5110,Food,29/06/2016,420543,138.38,NET,Woodward Foodservice,10714F
Gloucester City Council,23UE,Guildhall Bar And Caf�,LA210,Catering Provisions -Food,5110,Food,29/06/2016,420544,153.62,NET,Woodward Foodservice,10714F
Gloucester City Council,23UE,Guildhall Bar And Caf�,LA210,Catering Provisions -Food,5110,Fruit May 2016,29/06/2016,420534,118.92,NET,Woody'S Fruit & Veg,11798L
Gloucester City Council,23UE,Guildhall Bar And Caf�,LA210,Catering Provisions -Food,5110,Milk,29/06/2016,420524,4.76,NET,Total Produce Gloucester,12645E
Gloucester City Council,23UE,Guildhall Bar And Caf�,LA210,Catering Provisions -Food,5110,Milk,29/06/2016,420525,4.76,NET,Total Produce Gloucester,12645E
Gloucester City Council,23UE,Guildhall Bar And Caf�,LA210,Catering Provisions -Food,5110,Milk,29/06/2016,420526,4.76,NET,Total Produce Gloucester,12645E
Gloucester City Council,23UE,REDACTED,REDACTED,REDACTED,REDACTED,REDACTED,29/06/2016,REDACTED,686.40,NET,REDACTED,REDACTED
Gloucester City Council,23UE,REDACTED,REDACTED,REDACTED,REDACTED,REDACTED,29/06/2016,REDACTED,340.00,NET,REDACTED,REDACTED
Gloucester City Council,23UE,REDACTED,REDACTED,REDACTED,REDACTED,REDACTED,29/06/2016,REDACTED,50.00,NET,REDACTED,REDACTED
Gloucester City Council,23UE,Internal Communications,RC430,Events,5952,Events programme Q2 & Q3 2016-17,29/06/2016,420356,"80,000.00",NET,Marketing Gloucester Ltd,08925E
Gloucester City Council,23UE,Kings Quarter,RY146,Contract Payments,0020,ECOLOGICAL SUPERVISION,29/06/2016,420517,515.00,CAP,Gva Grimley,56359W
Gloucester City Council,23UE,Marketing Gloucester Charges,RC433,Contracted Services,6970,MGL staff funding Q2 2016-17,29/06/2016,420357,"14,912.50",NET,Marketing Gloucester Ltd,08925E
Gloucester City Council,23UE,Printing,RP103,Printing,5300,Print Room Charges,29/06/2016,420547,283.47,NET,Gloucestershire County Council,18650D
Gloucester City Council,23UE,Public Health,HD200,Other Minor Supplies Services,5590,Kingsway Builder JUL-SEP16,29/06/2016,420244,"7,538.41",NET,Gl Communities,09535X
Gloucester City Council,23UE,Retail Market - Landlord,HM300,Cleaning Materials,3600,cleaning materials,29/06/2016,419792,224.83,NET,Acs Business Supplies Ltd,15791M
Gloucester City Council,23UE,The Arbor,HC501,Catering Provisions -Food,5110,food,29/06/2016,420285,210.90,NET,Janes Pantry,24500W
Gloucester City Council,23UE,The Arbor,HC501,Catering Provisions -Food,5110,Food,29/06/2016,420519,104.18,NET,Bidvest Foodservice (3663),55585U
Gloucester City Council,23UE,The Arbor,HC501,Catering Provisions -Food,5110,Food,29/06/2016,420521,345.01,NET,Bidvest Foodservice (3663),55585U
Gloucester City Council,23UE,The Arbor,HC501,Catering Provisions -Food,5110,Food,29/06/2016,420522,334.27,NET,Bidvest Foodservice (3663),55585U
Gloucester City Council,23UE,The Arbor,HC501,Catering Provisions -Food,5110,Food,29/06/2016,420523,97.21,NET,Bidvest Foodservice (3663),55585U
Gloucester City Council,23UE,The Arbor,HC501,Catering Provisions -Food,5110,Food,29/06/2016,420545,547.16,NET,Bidvest Foodservice (3663),55585U
Gloucester City Council,23UE,The Arbor,HC501,Cleaning Materials,3600,cleaning materials,29/06/2016,419792,100.71,NET,Acs Business Supplies Ltd,15791M
Gloucester City Council,23UE,The Arbor,HC501,Cleaning Materials,3600,sanitary disposal units,29/06/2016,420310,34.57,NET,Minster Cleaning Services,02158R
Gloucester City Council,23UE,The Arbor,HC501,Operational Equipment <5000,5012,goods,29/06/2016,419734,89.98,NET,Nisbets,55372P
Gloucester City Council,23UE,The Arbor,HC501,Operational Equipment <5000,5012,goods for Arbor,29/06/2016,419690,47.30,NET,Nisbets,55372P
Gloucester City Council,23UE,The Arbor,HC501,Other Minor Supplies Services,5590,Flowers,29/06/2016,420537,34.50,NET,Carols Florist,01274X
Gloucester City Council,23UE,The Arbor,HC501,Other Minor Supplies Services,5590,Flowers,29/06/2016,420538,25.00,NET,Carols Florist,01274X
Gloucester City Council,23UE,The Arbor,HC501,Other Minor Supplies Services,5590,Flowers,29/06/2016,420539,25.00,NET,Carols Florist,01274X
Gloucester City Council,23UE,The Arbor,HC501,Other Minor Supplies Services,5590,Flowers,29/06/2016,420540,50.00,NET,Carols Florist,01274X
Gloucester City Council,23UE,The Arbor,HC501,Other Minor Supplies Services,5590,Flowers,29/06/2016,420541,31.50,NET,Carols Florist,01274X
Gloucester City Council,23UE,The Arbor,HC501,Other Minor Supplies Services,5590,Flowers,29/06/2016,420542,28.50,NET,Carols Florist,01274X
Gloucester City Council,23UE,The Arbor,HC501,Other Minor Supplies Services,5590,Fresh Flowers,29/06/2016,420536,25.00,NET,Carols Florist,01274X
Gloucester City Council,23UE,Tourism Marketing,LT100,Cleaning Materials,3600,cleaning materials,29/06/2016,419792,47.88,NET,Acs Business Supplies Ltd,15791M
Gloucester City Council,23UE,Vehicles,RS140,Routine R And M - Vehicles,4011,LABOUR & CONSUMABLES,29/06/2016,420492,67.50,NET,123 Car & Commercial,07651E
Gloucester City Council,23UE,Allotments,HI104,Fees For Services Received,5350,Reimbursement for Grass Seed,30/06/2016,420614,39.99,NET,Saintbridge Allotments & Gardens Association,09542S
Gloucester City Council,23UE,Contact Centre,RB300,Postages,5400,Post 03/06- 16/06 2016,30/06/2016,420499,"1,351.48",NET,Royal Mail S.Wales & South West,35830S
Gloucester City Council,23UE,Contact Centre,RB300,Postages,5400,Post 08/11/14 - 31/12/15,30/06/2016,420510,86.24,NET,Royal Mail S.Wales & South West,35830S
Gloucester City Council,23UE,Contact Centre,RB300,Stationery,5302,Stationary,30/06/2016,420453,1.09,NET,Lyreco Uk Ltd,11746G
Gloucester City Council,23UE,Contact Centre,RB300,Stationery,5302,Stationary,30/06/2016,420454,31.79,NET,Lyreco Uk Ltd,11746G
Gloucester City Council,23UE,Contact Centre,RB300,Stationery,5302,Stationary,30/06/2016,420455,75.33,NET,Lyreco Uk Ltd,11746G
Gloucester City Council,23UE,Contact Centre,RB300,Stationery,5302,Stationary,30/06/2016,420456,1.40,NET,Lyreco Uk Ltd,11746G
Gloucester City Council,23UE,Contact Centre,RB300,Stationery,5302,Stationary,30/06/2016,420457,33.28,NET,Lyreco Uk Ltd,11746G
Gloucester City Council,23UE,Council Streetcare Team,HI101,Maint Of Grounds - General,3030,Bird Seed,30/06/2016,420451,38.32,NET,Angell Pets Ltd,15773P
Gloucester City Council,23UE,REDACTED,REDACTED,REDACTED,REDACTED,REDACTED,30/06/2016,REDACTED,40.00,NET,REDACTED,REDACTED
Gloucester City Council,23UE,Grants To Voluntary Sector,FG100,Members Allocation Fund,7100F,Contribution,30/06/2016,420461,250.00,NET,Gloucestershire Wildlife Trust,15576A
Gloucester City Council,23UE,Grants To Voluntary Sector,FG100,Members Allocation Fund,7100F,Members Allocation Fund,30/06/2016,420470,230.00,NET,Roots Coffee & Community Cic,13358B
Gloucester City Council,23UE,Grants To Voluntary Sector,FG100,Members Allocation Fund,7100F,Members Allocation Fund ,30/06/2016,420471,500.00,NET,Roots Coffee & Community Cic,13358B
Gloucester City Council,23UE,Guildhall Bar And Caf�,LA210,Catering Provisions -Food,5110,Milk,30/06/2016,420527,4.76,NET,Total Produce Gloucester,12645E
Gloucester City Council,23UE,Guildhall Bar And Caf�,LA210,Catering Provisions -Food,5110,Milk,30/06/2016,420528,4.76,NET,Total Produce Gloucester,12645E
Gloucester City Council,23UE,Guildhall Bar And Caf�,LA210,Catering Provisions -Food,5110,Milk,30/06/2016,420529,4.76,NET,Total Produce Gloucester,12645E
Gloucester City Council,23UE,Guildhall Bar And Caf�,LA210,Catering Provisions -Food,5110,Milk,30/06/2016,420530,4.76,NET,Total Produce Gloucester,12645E
Gloucester City Council,23UE,Parks Contract Management,LP100,Maint Of Grounds - General,3030,Square Bin liner,30/06/2016,420452,64.00,NET,Streetmaster Products,00534D
Gloucester City Council,23UE,Registration Of Electors,RS400,Fees For Services Received,5350,May election count - room hire,30/06/2016,419717,800.00,NET,Aspire Sports & Cultural Trust,08135V
Gloucester City Council,23UE,Registration Of Electors,RS400,Printing,5300,AV Refresh,30/06/2016,416175,423.00,NET,Alpha Response Print & Mail Ltd,03029U
Gloucester City Council,23UE,REDACTED,REDACTED,REDACTED,REDACTED,REDACTED,30/06/2016,REDACTED,92.40,NET,REDACTED,REDACTED
Gloucester City Council,23UE,Tic Trading,LT110,Publications For Sale,5064,Cycle Maps,30/06/2016,420469,75.00,NET,Cotswold District Council,49331J
Gloucester City Council,23UE,Tourism Marketing,LT100,Uniforms,5201,Name Badges,30/06/2016,420468,11.95,NET,Badgemaster Ltd,58525J
Gloucester City Council,23UE,REDACTED,REDACTED,REDACTED,REDACTED,REDACTED,30/06/2016,REDACTED,"9,468.00",CAP,REDACTED,REDACTED
Gloucester City Council,23UE,Vehicles,RS140,Fuel,4012,Fuel,30/06/2016,420502,171.68,NET,Allstar Business Solutions Ltd (Arval),06594A
Gloucester City Council,23UE,Vehicles,RS140,Fuel,4012,Fuel,30/06/2016,420515,138.32,NET,Allstar Business Solutions Ltd (Arval),06594A
Gloucester City Council,23UE,Business Transformation & Tech,RT700,Licences,5703,Info@Work 18 licences,,420154,410.04,NET,Northgate Public Services Uk Ltd,08982S
Gloucester City Council,23UE,Business Transformation & Tech,RT700,Licences,5703,Info@work 18 licences Build-control,,420153,272.35,NET,Northgate Public Services Uk Ltd,08982S
Gloucester City Council,23UE,Business Transformation & Tech,RT700,Licences,5703,Info@work 6x HR licences,,420156,133.54,NET,Northgate Public Services Uk Ltd,08982S
Gloucester City Council,23UE,Business Transformation & Tech,RT700,Licences,5703,Info@work IBS integration support,,420157,"1,891.24",NET,Northgate Public Services Uk Ltd,08982S
Gloucester City Council,23UE,Business Transformation & Tech,RT700,Licences,5703,support & maintenance I@W x 16,,420155,422.50,NET,Northgate Public Services Uk Ltd,08982S
Gloucester City Council,23UE,Business Transformation & Tech,RT700,Mobile Phones,5409,Blueyonder Jun - Jul 16,,419984,80.00,NET,Virgin Media Payments Ltd,09376J
Gloucester City Council,23UE,Business Transformation & Tech,RT700,Mobile Phones,5409,Cable Modem Jun - Jul 2016,,419985,33.00,NET,Virgin Media Payments Ltd,09376J
Gloucester City Council,23UE,Business Transformation & Tech,RT700,Mobile Phones,5409,Charges May - Jun 2016,,418926,33.00,NET,Virgin Media Payments Ltd,09376J
Gloucester City Council,23UE,Business Transformation & Tech,RT700,Mobile Phones,5409,Charges May - Jun 2016,,418927,80.00,NET,Virgin Media Payments Ltd,09376J
Gloucester City Council,23UE,Business Transformation & Tech,RT700,Mobile Phones,5409,Line Rental Jun- Jul 16,,419983,16.99,NET,Virgin Media Payments Ltd,09376J
Gloucester City Council,23UE,City Museum And Art Gallery,LM200,Publications For Sale,5064,Books,,420476,30.00,NET,Gloucester Rugby Heritage Project,16502R
Gloucester City Council,23UE,Crematorium Heat Exchanger,HY048,Contract Payments,0020,Structural Inspection,,413901,712.50,CAP,Astam G.B.C. Consultancy Ltd,55027L
Gloucester City Council,23UE,Financial Services,RT200,Fees For Services Received,5350,1 Grosvenor Hse MAR-APR16,,417884,34.18,NET,Opus Energy (Corporate),12788B
Gloucester City Council,23UE,Financial Services,RT200,Fees For Services Received,5350,Grosvenor House,,418930,49.98,NET,Opus Energy (Corporate),12788B
Gloucester City Council,23UE,Financial Services,RT200,Fees For Services Received,5350,Not city council - credit received to clear,,419929,126.25,NET,Pickerings Europe Ltd,58816U
Gloucester City Council,23UE,Flooding And Drainage,HE306,Maint Of Grounds - General,3030,Porchester Road Modelling,,420478,"2,531.00",NET,Richard Allitt Associates Ltd,14764A
Gloucester City Council,23UE,Gates Streets,GY014,Contract Payments,0020,Plants,,420486,"1,960.00",CAP,Ae Bishop T/A Evergreen Nurseries,14604A
Gloucester City Council,23UE,Gloucester Guildhall,LA100,General Repair/Maint Buildings,3000,Wood & Screws,,419160,112.88,NET,Nicks & Company (Timber) Ltd,48452E
Gloucester City Council,23UE,Grants To Voluntary Sector,FG100,Grants To Advice Centres,7100,Contribution,,420495,"2,000.00",NET,Longlevens (Gloucester)Community Association,16504L
Gloucester City Council,23UE,Grants To Voluntary Sector,FG100,Members Allocation Fund,7100F,Contributions,,420494,"2,000.00",NET,The Parish Of Holy Trinity,16499B
Gloucester City Council,23UE,Grants To Voluntary Sector,FG100,Members Allocation Fund,7100F,Expenses,,420496,496.00,NET,Tuffley Community Fund,16505J
Gloucester City Council,23UE,REDACTED,REDACTED,REDACTED,REDACTED,REDACTED,,REDACTED,150.00,NET,REDACTED,REDACTED
Gloucester City Council,23UE,REDACTED,REDACTED,REDACTED,REDACTED,REDACTED,,REDACTED,300.00,NET,REDACTED,REDACTED
Gloucester City Council,23UE,REDACTED,REDACTED,REDACTED,REDACTED,REDACTED,,REDACTED,"2,500.00",CAP,REDACTED,REDACTED
Gloucester City Council,23UE,REDACTED,REDACTED,REDACTED,REDACTED,REDACTED,,REDACTED,21.00,NET,REDACTED,REDACTED
Gloucester City Council,23UE,Meet & Greet,FP309,Advertising And Publicity,5702,1/4 page advert,,420359,285.00,NET,Destination Uk Ltd,16462B
Gloucester City Council,23UE,Registration Of Electors,RS400,Fees For Services Received,5350,table & chair hire for EU referendum,,417844,"1,684.75",NET,Furniture Hire Uk,15526K
Gloucester City Council,23UE,Registration Of Electors,RS400,Printing,5300,JUNE REFERENDUM POLL CARDS,,419696,"3,078.00",NET,Alpha Response Print & Mail Ltd,03029U
Gloucester City Council,23UE,Shopmobility,PE200,Cleaning Materials,3600,Waste Services,,420462,12.91,NET,Ocs Group Uk Limited T/A Cannon,06506A
Gloucester City Council,23UE,Tourism Marketing,LT100,Other Minor Supplies Services,5590,Brown Kraft Bags,,420460,245.00,NET,Fleet Retail Packaging Ltd,04259N
Gloucester City Council,23UE,Vehicles,RS140,Routine R And M - Vehicles,4011,Consumables,,420493,45.00,NET,123 Car & Commercial,07651E
Gloucester City Council,23UE,Vehicles,RS140,Routine R And M - Vehicles,4011,Repairs,,420485,56.85,NET,123 Car & Commercial,07651E
Gloucester City Council,23UE,Vehicles,RS140,Routine R And M - Vehicles,4011,Various Items,,420491,28.48,NET,123 Car & Commercial,07651E
,,,,,,,,Sum:,"9,863,340.22",,,
